Cogmind - Beta 16 @@@ ROGUE MODE // 2025.10.31 @ 11:29:56 Player: Necroptosis Result: Destroyed by P-80 Master with Gamma Rifle Performance ------------- Evolutions (9) 4500 Regions Visited (34) 6800 Robots Destroyed (369) 1845 Value Destroyed (16600) 16600 Prototype IDs (37) 740 Alien Tech Used (0) 0 Bonus (10862) 10862 TOTAL SCORE: 41347 Bonus ------- High Alert Combat Kills 991 Follower Combat Kills 1395 Entered Garrisons 1600 Used RIF Installer 3000 Network Hubs Disabled 200 Aligned with FarCom 300 Met Zhirov 300 Built Enhanced Grunts 300 A7 Reached Mainframe 300 Met R17 at Cetus 500 Met R17 at Research 2000 Friendly Fire -24 Cogmind --------- Core Integrity 0/1600 Matter 84/300 Energy 85/100 System Corruption 44% Temperature Cool (0) Movement Treading (145) Location -1/Access Parts ------- > --- POWER (3) -------- (None) > --- PROPULSION (6) --- Advanced Heavy Treads Advanced Heavy Treads > --- UTILITY (12) ----- (None) > --- WEAPON (4) ------- (None) > --- INVENTORY (5) ---- Phase Gun HERF Cannon HERF Cannon Heavy Disruptor Cannon Peak State ------------ > --- POWER ------------ Light Antimatter Reactor Micro Antimatter Reactor Micro Antimatter Reactor > --- PROPULSION ------- Improved Heavy Siege Treads Improved Heavy Siege Treads Centrium Heavy Treads > --- UTILITY ---------- Advanced Heat Sink Advanced Heat Sink Advanced Heat Sink Advanced Heat Sink Advanced Cooling System Improved Coolant Injector High-capacity Storage Unit Long-range Terrain Scanner Advanced Target Analyzer Advanced Target Analyzer Advanced Transmission Jammer Relay Coupler [NC] > --- WEAPON ----------- Gamma Rifle Enhanced Hardcell Cannon Enhanced Hardcell Cannon Enhanced Hardcell Cannon > --- INVENTORY -------- Light Antimatter Reactor Improved Fusion Compressor Tesla Rifle Gamma Rifle Gamma Rifle Gamma Rifle Phase Gun Quantum Rifle HERF Cannon HERF Cannon Heavy Disruptor Cannon Compact HERF Cannon Enhanced Hardcell Cannon Advanced Remote Datajack Deploy-a-Sentry Deploy-a-Sentry Deploy-a-Sentry [Rating: 183] Favorites ----------- Power Quantum Reactor Engine Improved Ion Engine Power Core Light Nuclear Core Reactor Quantum Reactor Propulsion Light Treads Treads Light Treads Leg Biometal Leg Wheel Armored Huge Wheel Hover Unit Gravmag System Utility High-capacity Storage Unit Device Advanced Heat Sink Storage High-capacity Storage Unit Processor Advanced Target Analyzer Hackware Relay Coupler [NC] Protection Centrium Medium Armor Plating Weapon Autogun Energy Gun Advanced Variable Charge Gun Energy Cannon Nova Cannon Ballistic Gun Autogun Ballistic Cannon Enhanced Gauss Cannon Launcher Advanced EMP Blaster Special Weapon Remote Datajack Impact Weapon Flail Piercing Weapon Spear Build | -11 -10 -10 -9 -9 -9 -8 -8 -8 -8 -8 -7 -7 -7 -7 -6 -6 -6 -6 -6 -5 -5 -5 -5 -4 -4 -4 -4 -3 -3 -3 -3 -3 -2 -1 ------- Run | Yrd Mat Min Mat Min Exi Min Mat Gar Mat Gar Fac Gar Fac Gar Fac Ext Cet Arc Hub Fac Gar Fac Gar Fac Upp Upp War Pro Res Gar Res Gar Res Acc Slots Evolved 18 | . . . 2 . . . 2 . . . 2 . . . 2 . . . . 2 . . . 2 . . . . 2 . . . 2 2 Power 2 | . . . . . . . 1 . . . . . . . . . . . . . . . . . . . . . . . . . 1 . Propulsion 4 | . . . . . . . . . . . 1 . . . 1 . . . . . . . . . . . . . 1 . . . 1 . Utility 10 | . . . 1 . . . 1 . . . 1 . . . 1 . . . . 1 . . . 2 . . . . 1 . . . . 2 Weapon 2 | . . . 1 . . . . . . . . . . . . . . . . 1 . . . . . . . . . . . . . . Parts Attached 240 | 7 6 . 18 . . . 19 3 26 11 11 14 . 12 4 6 13 . 1 1 2 . 7 2 1 1 . 11 6 6 5 22 15 10 Power 46 | 1 1 . 2 . . . 4 1 5 1 1 3 . 3 1 2 4 . . . . . 1 . . . . 2 . . . 5 5 4 Engine 17 | 1 1 . 2 . . . 3 1 3 . . 2 . 1 . . . . . . . . . . . . . 1 . . . . . 2 Core 14 | . . . . . . . 1 . 2 1 1 1 . 2 1 2 . . . . . . . . . . . 1 . . . 1 . 1 Reactor 15 | . . . . . . . . . . . . . . . . . 4 . . . . . 1 . . . . . . . . 4 5 1 Propulsion 43 | 2 . . 6 . . . 2 . 5 4 2 2 . 2 1 . 2 . . . . . 1 . . . . 1 3 . 1 2 2 5 Treads 37 | 2 . . 5 . . . 2 . 5 4 2 2 . . . . 2 . . . . . 1 . . . . 1 3 . 1 2 2 3 Leg 2 | . . . . . . . . . . . . . . . . . . . . . . . . . . . . . . . . . . 2 Wheel 3 | . . . 1 . . . . . . . . . . 1 1 . . . . . . . . . . . . . . . . . . . Hover 1 | . . . . . . . . . . . . . . 1 . . . . . . . . . . . . . . . . . . . . Flight . | . . . . . . . . . . . . . . . . . . . . . . . . . . . . . . . . . . . Utility 79 | 2 3 . 3 . . . 7 1 8 3 6 5 . 1 1 3 3 . . 1 1 . 2 2 1 1 . 5 2 3 1 10 3 1 Device 42 | 1 . . 3 . . . 5 . 4 . 3 2 . . . 2 . . . . 1 . 1 1 1 1 . 4 2 . 1 8 1 1 Storage 3 | 1 2 . . . . . . . . . . . . . . . . . . . . . . . . . . . . . . . . . Processor 5 | . . . . . . . . . . . . . . . . . . . . . . . 1 . . . . . . 1 . 2 1 . Hackware 10 | . . . . . . . . . 1 . 3 3 . 1 . . 1 . . . . . . . . . . . . . . . 1 . Protection 19 | . 1 . . . . . 2 1 3 3 . . . . 1 1 2 . . 1 . . . 1 . . . 1 . 2 . . . . Artifact . | . . . . . . . . . . . . . . . . . . . . . . . . . . . . . . . . . . . Weapon 72 | 2 2 . 7 . . . 6 1 8 3 2 4 . 6 1 1 4 . 1 . 1 . 3 . . . . 3 1 3 3 5 5 . Energy Gun 19 | 1 . . 1 . . . . . 3 . 1 2 . . . 1 2 . . . 1 . 1 . . . . 2 . . 2 1 1 . Energy Cannon 9 | . . . . . . . 1 . . . . 1 . . . . . . . . . . 1 . . . . . 1 3 . 2 . . Ballistic Gun 30 | 1 2 . 5 . . . 1 1 4 3 1 1 . 5 1 . 2 . 1 . . . . . . . . . . . . 2 . . Ballistic Cannon 7 | . . . . . . . . . . . . . . 1 . . . . . . . . 1 . . . . 1 . . . . 4 . Launcher 3 | . . . . . . . 3 . . . . . . . . . . . . . . . . . . . . . . . . . . . Special Weapon 2 | . . . . . . . . . 1 . . . . . . . . . . . . . . . . . . . . . 1 . . . Impact Weapon 1 | . . . 1 . . . . . . . . . . . . . . . . . . . . . . . . . . . . . . . Slashing Weapon . | . . . . . . . . . . . . . . . . . . . . . . . . . . . . . . . . . . . Piercing Weapon 1 | . . . . . . . 1 . . . . . . . . . . . . . . . . . . . . . . . . . . . Special Melee Weapon . | . . . . . . . . . . . . . . . . . . . . . . . . . . . . . . . . . . . Unidentified Prototypes 14 | . . . 2 . . . 1 . 4 . 1 . . 1 . . 4 . . . . . . . . . . 1 . . . . . . Corrupted Parts 12 | . . . . . . . . . . . . . . 1 . . 4 . 1 . . . 3 . . . . . . . . . . 3 System Corruption 48 | . . . . . . . . . . . . . . 2 . . 7 . 2 . . . 18 . . . . . . . . . . 19 Parts Lost 139 | . . . 5 . . . 4 1 7 8 5 11 . 10 . 5 . . 1 . 1 . 9 . . . . 10 2 4 . 19 11 26 Power 30 | . . . . . . . . 1 1 2 1 3 . 2 . 1 . . . . . . 1 . . . . 2 . . . 5 4 7 Propulsion 26 | . . . 2 . . . . . 1 2 . 3 . 4 . . . . . . . . 2 . . . . 1 1 . . 3 1 6 Utility 39 | . . . . . . . 2 . 4 1 3 1 . . . 3 . . . . . . 2 . . . . 4 . 3 . 6 1 9 Weapon 44 | . . . 3 . . . 2 . 1 3 1 4 . 4 . 1 . . 1 . 1 . 4 . . . . 3 1 1 . 5 5 4 Highest Loss Streak 17 | . . . 2 . . . 2 1 3 5 4 4 . 5 . 3 . . 1 . 1 . 9 . . . . 8 2 1 . 11 4 17 To Critical Strikes 3 | . . . . . . . . . . 1 . . . . . . . . . . . . . . . . . . 1 . . . . 1 Average Backups 15 | 3 13 16 18 19 17 16 15 16 16 16 16 15 14 16 16 16 15 15 14 13 14 14 9 7 12 15 16 14 12 13 13 10 14 11 Power 1 | . 1 2 1 1 1 1 . . 1 . . 1 1 . 1 1 2 2 2 2 2 2 1 1 2 2 2 1 . 1 1 . 1 . Propulsion 3 | 2 4 4 5 4 4 4 6 5 4 3 2 1 . . . 1 1 2 2 2 2 2 . 1 3 4 4 4 3 5 4 3 . . Utility 4 | . 2 3 5 6 4 3 2 2 3 4 5 6 8 8 7 7 4 3 3 2 2 2 2 1 2 3 4 4 5 3 3 2 4 . Weapon 5 | . 4 5 5 7 7 7 6 6 5 6 6 5 4 5 5 5 6 7 6 5 6 7 3 2 3 4 5 3 1 3 3 2 7 9 Tool/Special . | . . . . . . . . . . . . . . . . . . . . . . . . . . . . . . . . . . . Unused Backups 72 | . 10 . 8 3 2 . 6 3 5 . 3 1 . 1 1 . 8 . . . . . . . . 3 . . . 1 3 . 1 13 Power 8 | . 1 . 3 . . . . . . . . . . . 1 . 2 . . . . . . . . 1 . . . . . . . . Propulsion 18 | . 5 . 1 1 . . 4 . 3 . . 1 . . . . 1 . . . . . . . . . . . . . 2 . . . Utility 10 | . 1 . . . 2 . . 2 . . . . . . . . 4 . . . . . . . . . . . . . . . 1 . Weapon 33 | . 3 . 4 2 . . 1 . 2 . 2 . . 1 . . 1 . . . . . . . . 2 . . . 1 1 . . 13 Tool/Special 3 | . . . . . . . 1 1 . . 1 . . . . . . . . . . . . . . . . . . . . . . . Average Slot Usage (%) 93 | . 100 100 99 100 100 100 99 100 99 98 99 96 100 91 84 85 85 86 85 87 87 88 84 85 89 89 89 85 89 89 90 83 85 69 Engine 8 | . 14 14 11 11 11 11 16 18 14 14 7 5 15 10 6 3 . . . . . . . . . . . 2 4 4 4 1 . 1 Core 2 | . . . . . . . 1 . 3 3 7 8 . 2 4 8 5 . . . . . . . . . . 2 4 4 4 4 2 1 Reactor 2 | . . . . . . . . . . . . . . . . . 7 13 13 11 10 11 10 10 10 10 10 5 . . . 1 9 6 Treads 15 | . 28 28 21 22 22 22 18 18 17 18 23 18 15 7 . . 10 13 13 11 11 11 7 5 5 5 5 5 13 14 14 10 12 8 Wheel 1 | . . . . . . . . . . . . 1 7 6 13 13 2 . . . . . 3 5 5 5 5 2 . . . . . . Device 16 | . 13 11 15 22 22 22 18 18 17 10 11 7 7 7 6 8 13 13 13 11 11 17 12 11 15 15 15 21 32 25 26 27 26 24 Storage 7 | . 14 14 11 11 11 11 9 9 9 9 7 7 7 7 6 6 6 6 6 5 5 5 5 5 5 5 5 5 4 4 4 4 4 3 Processor 1 | . . . . . . . . . . . . . . . . . . . . . . . 2 5 5 5 5 5 4 5 9 9 8 6 Hackware 6 | . . . . . . . . . . . 14 23 23 23 20 17 13 13 13 11 10 5 5 5 5 5 5 5 4 4 4 2 3 3 Protection 5 | . . 2 6 . . . 7 9 8 15 4 . . . 5 6 6 6 6 10 11 11 10 15 15 15 15 8 . 5 . . . . Energy Gun 4 | . 3 . . . . . . . 8 7 . 1 7 1 . 5 11 13 11 5 5 5 9 10 10 10 10 12 12 9 8 5 . 3 Energy Cannon 2 | . . . . . . . 7 6 . . . . 7 5 5 . . . . . . . 2 5 5 5 5 2 1 4 9 8 5 . Ballistic Gun 15 | . 24 28 32 33 33 33 18 20 17 19 22 19 7 13 13 13 7 6 7 17 17 17 5 . . . . . . . . 3 5 . Ballistic Cannon 1 | . . . . . . . . . . . . . . . . . . . . . . . 3 5 5 5 5 4 4 3 . . 4 8 Peak Build Rating 183 | 7 12 12 22 22 23 23 35 35 40 40 48 49 45 52 61 65 111 111 113 129 129 129 129 126 130 133 132 132 136 139 148 149 173 183 Average Rating 66 | 5 10 11 20 21 22 23 31 33 33 37 45 46 45 46 59 63 96 111 111 128 127 129 110 117 127 131 132 119 131 134 144 138 166 137 On Entrance 79 | . 7 11 12 21 22 23 23 33 34 40 37 48 45 45 46 61 65 111 111 113 129 129 129 106 126 130 132 132 123 136 139 148 142 170 Avg Prop Armor Cover (%) 12 | . . . . . . . . . . . . 15 16 14 . . 10 . . . . . 8 7 7 7 7 7 . . . . . 23 Naked Turns 47 | . . . . . . . . . . . . . . . . . . . . . . . . . . . . . . . . . . 47 Heaviest Build 134 | 14 56 56 65 60 60 60 84 83 82 74 72 85 82 86 82 81 105 105 106 119 124 124 124 130 131 131 131 131 106 114 117 132 121 134 Greatest Support 230 | 40 40 40 43 43 43 43 43 43 43 40 68 68 12 40 56 56 160 160 160 160 160 160 160 28 28 28 28 155 185 178 183 183 230 230 Greatest Overweight (x) 23 | . 1 1 5 1 1 1 1 1 3 3 1 7 6 22 1 1 3 . . . . . 4 4 4 4 4 4 . . . . . 23 Average Overweight (x) 1 | . . 1 1 1 1 1 1 1 1 1 . 1 6 5 1 1 . . . . . . 2 4 4 4 4 2 . . . . . . Largest Inventory Capacity 20 | 8 20 20 20 20 20 20 20 20 20 20 20 20 20 20 20 20 20 20 20 20 20 20 20 20 20 20 20 20 20 20 20 20 20 20 Average Capacity 19 | 6 16 20 20 20 20 20 20 20 20 20 20 20 20 20 20 20 20 20 20 20 20 20 20 20 20 20 20 20 20 20 20 20 20 16 Most Carried 20 | 6 15 17 20 20 20 20 20 20 20 20 20 20 18 20 20 20 20 20 20 19 20 19 19 15 18 20 20 20 20 20 20 20 20 19 Average Carried 18 | 3 13 16 18 19 19 20 19 19 19 19 19 18 17 19 19 19 19 20 19 18 19 19 12 11 16 19 20 18 16 19 19 16 18 15 Final Capacity 20 | 8 20 20 20 20 20 20 20 20 20 20 20 20 20 20 20 20 20 20 20 20 20 20 20 20 20 20 20 20 20 20 20 20 20 5 Final Carried 20 | 6 15 17 20 20 20 20 20 20 20 20 20 17 18 19 20 20 20 20 19 19 19 19 9 15 18 20 20 17 20 19 20 17 15 5 Class Distribution -------------------- 25% | Scavenger-Tank 13% | Bothacker-Skirmisher 9% | Scientist-Tank 9% | Mutant 8% | Tank 7% | Gunner 6% | Scavenger-Gunner 6% | Scavenger-Skirmisher 4% | Botlord-Skirmisher Dominant Class ---------------- Mutant | -10/Materials Mutant | -10/Mines Tank | -9/Materials Gunner | -9/Mines Gunner | -9/Exiles Skirmisher | -8/Mines Scientist-Skirmisher | -8/Materials Scientist-Tank | -8/Garrison Scientist-Tank | -8/Materials Scavenger-Tank | -8/Garrison Bothacker-Skirmisher | -7/Factory Bothacker-Skirmisher | -7/Garrison Bothacker-Skirmisher | -7/Factory Botlord-Skirmisher | -7/Garrison Botlord-Tank | -6/Factory Botlord-Skirmisher | -6/Extension Bothacker-Tank | -6/Cetus Scavenger-Tank | -6/Archives Scavenger-Tank | -6/Hub_04(d) Scavenger-Tank | -5/Factory Scavenger-Tank | -5/Garrison Scavenger-Tank | -5/Factory Scavenger-Tank | -5/Garrison Scavenger-Tank | -4/Factory Scavenger-Tank | -4/Upper Caves Scavenger-Tank | -4/Upper Caves Scavenger-Tank | -4/Warlord Scavenger-Tank | -3/Proximity Caves Scavenger-Gunner | -3/Research Scavenger-Tank | -3/Garrison Scavenger-Tank | -3/Research Scavenger-Tank | -3/Garrison Scavenger-Gunner | -2/Research Scavenger-Tank | -1/Access Resources | -11 -10 -10 -9 -9 -9 -8 -8 -8 -8 -8 -7 -7 -7 -7 -6 -6 -6 -6 -6 -5 -5 -5 -5 -4 -4 -4 -4 -3 -3 -3 -3 -3 -2 -1 ----------- Run | Yrd Mat Min Mat Min Exi Min Mat Gar Mat Gar Fac Gar Fac Gar Fac Ext Cet Arc Hub Fac Gar Fac Gar Fac Upp Upp War Pro Res Gar Res Gar Res Acc Matter Collected 10761 | 221 331 148 749 73 . 48 730 320 1372 458 573 1043 . 821 149 430 248 . 149 96 203 . 216 83 73 97 . 253 169 215 60 375 680 378 Remotely . | . . . . . . . . . . . . . . . . . . . . . . . . . . . . . . . . . . . Salvage Created 16372 | 25 467 189 933 28 . 53 1126 567 2039 578 773 1041 . 1093 176 594 259 . 591 215 410 . 254 78 222 370 . 619 383 619 201 884 1116 469 Parts 875 | 3 41 10 80 . . 8 77 44 118 39 41 59 . 47 5 31 12 . 27 6 24 . 19 5 4 13 . 15 7 23 4 41 48 24 Haulers Intercepted 14 | . 2 . 2 . . . 1 . 6 . 2 . . . . . . . . . . . . . . . . 1 . . . . . . Recyclers Shooed 7 | 1 . . . . . . 1 . 1 . 1 . . . . . . . . 1 . . . . . . . . . . . . 1 1 Parts Field Recycled . | . . . . . . . . . . . . . . . . . . . . . . . . . . . . . . . . . . . Retrieved Matter . | . . . . . . . . . . . . . . . . . . . . . . . . . . . . . . . . . . . Parts Self-Destructed 35 | . . . . . . . . . . . . . . . . . . . . . . . . . 1 20 . 14 . . . . . . Prevented . | . . . . . . . . . . . . . . . . . . . . . . . . . . . . . . . . . . . Parts Restored 1 | . . . . . . . 1 . . . . . . . . . . . . . . . . . . . . . . . . . . . Broken 1 | . . . . . . . 1 . . . . . . . . . . . . . . . . . . . . . . . . . . . Kills | -11 -10 -10 -9 -9 -9 -8 -8 -8 -8 -8 -7 -7 -7 -7 -6 -6 -6 -6 -6 -5 -5 -5 -5 -4 -4 -4 -4 -3 -3 -3 -3 -3 -2 -1 ------- Run | Yrd Mat Min Mat Min Exi Min Mat Gar Mat Gar Fac Gar Fac Gar Fac Ext Cet Arc Hub Fac Gar Fac Gar Fac Upp Upp War Pro Res Gar Res Gar Res Acc Combat Hostiles Destroyed 315 | . 14 4 21 2 . 4 23 21 33 15 12 28 . 19 3 10 4 . 9 5 7 . 7 1 4 7 . 9 4 9 1 14 21 4 Guns 203 | . 14 4 21 2 . 4 8 5 29 15 12 22 . 7 . 7 4 . 9 3 7 . 6 1 2 4 . 3 2 3 . 5 3 1 Cannons 71 | . . . . . . . 10 5 1 . . . . 9 . . . . . . . . 1 . 2 3 . 5 2 5 1 8 18 1 AOE 36 | . . . . . . . 5 11 3 . . 6 . 3 3 3 . . . 2 . . . . . . . . . . . . . . Classes Destroyed 21 | 1 6 . 3 1 . . 2 1 2 1 . . . . . . . . . . . . . . 1 1 . . 1 . . . 1 . Worker 15 | . 2 . 3 . . . . . 4 . 1 . . . 2 1 . . . . . . . . . . . . . . . . . 2 Builder 9 | . 2 . . . . . 1 . . . 1 . . . . 1 . . 1 . . . . 1 . . . . . . . . 1 1 Tunneler 2 | 1 . . . . . . . . 1 . . . . . . . . . . . . . . . . . . . . . . . . . Hauler 14 | . 2 . 2 . . . 1 . 6 . 2 . . . . . . . . . . . . . . . . 1 . . . . . . Recycler 10 | . . . 2 . . . 1 . . . 1 . . . 1 1 . . . . . . . . . . . . 1 . 1 . 1 1 Mechanic 1 | . . . . . . . 1 . . . . . . . . . . . . . . . . . . . . . . . . . . . Operator 2 | . . . 1 . . . 1 . . . . . . . . . . . . . . . . . . . . . . . . . . . Watcher 2 | . 1 . . . . . . . 1 . . . . . . . . . . . . . . . . . . . . . . . . . Swarmer 98 | . 9 . 12 . . 4 7 13 2 4 . 11 . 5 3 3 . . . . . . 2 . 1 6 . . . . . 3 13 . Cutter 7 | . . . . . . . . . . 2 . . . . . . . . . . 2 . 3 . . . . . . . . . . . Grunt 106 | . 5 4 4 . . . 8 4 19 . 7 10 . 6 . 4 . . 6 5 3 . . . 1 2 . 5 3 3 . 5 2 . Brawler 4 | . . . . . . . . . 2 . 1 . . 1 . . . . . . . . . . . . . . . . . . . . Sentry 42 | . . . 5 . . . 7 . 8 6 1 6 . . . 2 . . 2 . 1 . . 1 1 . . . . 1 1 . . . Specialist 5 | . . . . . . . . . . . . . . . . . . . . . . . . . . . . . . . . . 3 2 Hunter 10 | . . . . . . . 1 1 1 . . . . . . . . . 1 . 1 . . . . . . 2 . 2 . . . 1 Programmer 32 | . . . . . . . . 3 . 3 3 1 . 7 . 1 . . . . . . 2 . . . . 2 . 2 . 5 2 1 Heavy 2 | . . . . . . . . . 1 . . . . . . . . . . . . . . . . . . . . . . . 1 . Behemoth 3 | . . . . . . . . . . . . . . . . . . . . . . . . . . . . . 1 1 . 1 . . Cetus Guard 4 | . . . . . . . . . . . . . . . . . 4 . . . . . . . . . . . . . . . . . Samaritan 1 | . . . . . . . . . . . . . . . . . . . . . . . . . . 1 . . . . . . . . Assembled 2 | . . . . 2 . . . . . . . . . . . . . . . . . . . . . . . . . . . . . . Mutant 1 | . . . . . . . . . . . . . . . . . . . . . . . . . 1 . . . . . . . . . Best Kill Streak 10 | 1 3 2 7 2 . 4 5 5 4 4 3 4 . 4 5 5 3 . 4 5 3 . 6 2 3 4 . 5 4 2 1 4 10 2 Combat Bots Only 7 | . 3 2 5 2 . 4 4 5 4 4 3 4 . 4 3 5 3 . 4 5 3 . 6 1 3 4 . 5 3 2 1 4 7 1 Max Kills in Single Turn 3 | 1 1 1 2 1 . 1 3 2 2 2 2 3 . 3 3 3 1 . 2 3 2 . 1 1 1 2 . 1 2 1 1 1 2 1 Gunslinging 1 | . . . 1 . . . . . . 1 . . . 1 . 1 . . . . . . . . . . . . . . . . . . Exploded 3 | . . . . . . . 3 2 2 . . 3 . 3 1 3 . . . 2 . . . . . . . . . . . . . . Melee . | . . . . . . . . . . . . . . . . . . . . . . . . . . . . . . . . . . . Uniques/NPCs Destroyed . | . . . . . . . . . . . . . . . . . . . . . . . . . . . . . . . . . . . Combat | -11 -10 -10 -9 -9 -9 -8 -8 -8 -8 -8 -7 -7 -7 -7 -6 -6 -6 -6 -6 -5 -5 -5 -5 -4 -4 -4 -4 -3 -3 -3 -3 -3 -2 -1 -------- Run | Yrd Mat Min Mat Min Exi Min Mat Gar Mat Gar Fac Gar Fac Gar Fac Ext Cet Arc Hub Fac Gar Fac Gar Fac Upp Upp War Pro Res Gar Res Gar Res Acc Hostile Shots Fired 2326 | . 73 20 88 6 . 8 58 57 123 117 72 225 . 135 11 82 31 . 113 23 39 . 107 10 19 31 . 118 44 105 5 227 93 286 Missed 656 | . 19 5 24 4 . 1 16 16 26 26 22 83 . 39 3 30 7 . 45 9 7 . 22 1 5 6 . 26 14 33 1 46 23 97 Hits 1670 | . 54 15 64 2 . 7 42 41 97 91 50 142 . 96 8 52 24 . 68 14 32 . 85 9 14 25 . 92 30 72 4 181 70 189 Melee 30 | . . . . 2 . . . . 1 5 1 . . . . . . . . . 2 . 19 . . . . . . . . . . . Projectile 1640 | . 54 15 64 . . 7 42 41 96 86 49 142 . 96 8 52 24 . 68 14 30 . 66 9 14 25 . 92 30 72 4 181 70 189 AOE 7 | . . . . . . . . . . 2 . . . . . . . . . . 2 . 2 . . . . . . . . . . 1 Critical Strikes 87 | . . . 2 . . . 1 . . 8 4 1 . 8 . 3 8 . 2 3 1 . 8 1 1 1 . 6 3 2 . 13 2 9 Part Disruptions 8 | . . . . . . . . . . 1 . . . 1 . . . . . . . . 1 . . . . 1 . . . 1 . 3 Actively Blocked 1 | . . . . . . . . . . 1 . . . . . . . . . . . . . . . . . . . . . . . . Damage Taken 30485 | . 478 183 764 65 . 56 685 400 1689 1327 863 1543 . 1439 173 775 527 . 826 340 586 . 1718 217 265 464 . 1738 728 1350 204 4030 2236 4816 Core 3890 | . 40 10 40 . . 10 61 44 150 151 62 227 . 188 54 101 14 . 87 22 . . 193 24 13 13 . 101 73 68 14 313 212 1605 Absorbed by Shields 1056 | . . . . . . . 129 132 96 . . 72 . 39 64 134 156 . . . . . . . . . . . . . 117 117 . . Reduced by Siege Mode 407 | . . . . . . . . . . . . . . . . . 13 . . . . . . . . . . 32 18 55 . 289 . . Ignored by Resistances 94 | . . . . . . . . . 69 . . . . . . . . . . . . . . . . . . . . 25 . . . . Regen/Repaired (Parts) 331 | . . . . . . . . . . . . . . . . . . . . . . . . 331 . . . . . . . . . . Core Remaining (%) 70 | 100 . 80 . . . 87 . . . 26 . . . 31 . . . . 69 . . . 78 . . . . 86 . . . 64 85 . Volleys Fired 858 | 2 54 11 41 5 . 4 45 30 96 45 40 64 . 65 11 38 18 . 25 6 20 . 15 4 9 11 . 27 14 27 6 51 38 36 Largest 4 | 2 2 2 3 3 . 3 3 3 3 3 3 3 . 3 3 3 3 . 3 4 4 . 4 4 4 4 . 4 4 4 4 4 4 4 Hottest 400 | 70 70 46 69 71 . 71 119 119 119 105 81 148 . 148 131 138 240 . 196 185 185 . 267 287 287 287 . 321 320 394 394 400 272 249 Shots Fired 2418 | 4 108 22 122 15 . 12 133 69 266 121 118 160 . 173 15 97 43 . 71 24 65 . 44 16 36 44 . 107 56 107 14 157 143 56 Gun 1877 | 4 108 22 122 15 . 12 96 45 249 119 116 151 . 114 4 92 43 . 71 24 65 . 37 8 18 22 . 66 35 54 5 89 42 29 Cannon 498 | . . . . . . . 34 15 7 2 . 4 . 57 4 3 . . . . . . 7 8 18 22 . 41 21 53 8 68 99 27 Launcher 30 | . . . . . . . 3 9 7 . . 4 . 2 3 2 . . . . . . . . . . . . . . . . . . Special 13 | . . . . . . . . . 3 . 2 1 . . 4 . . . . . . . . . . . . . . . 1 . 2 . Kinetic 1493 | 2 80 22 122 15 . 12 96 45 169 86 116 134 . 114 4 72 24 . 33 18 47 . 16 4 9 11 . 24 14 25 . 43 109 27 Thermal 712 | 2 28 . . . . . . . 80 33 . 4 . 49 4 23 19 . 38 6 6 . 19 12 27 33 . 83 42 82 13 103 6 . Explosive 12 | . . . . . . . 1 1 3 . . . . 2 3 2 . . . . . . . . . . . . . . . . . . Electromagnetic 188 | . . . . . . . 36 23 11 2 . 21 . 8 . . . . . . 12 . 9 . . . . . . . . 11 26 29 Robot Hit Streak 45 | 4 6 14 25 6 . 3 45 22 19 13 15 9 . 7 9 11 7 . 10 3 8 . 3 5 8 9 . 9 16 30 7 23 11 5 Robot Miss Streak 8 | . 4 1 4 1 . 1 4 2 3 2 3 6 . 8 . 3 3 . 4 3 3 . 4 1 3 8 . 5 3 3 2 3 2 2 Penetration Max 2 | . . . . . . . . . . . 1 . . 2 . 1 1 . . . 1 . . 1 . . . . 1 . . . 1 . Secondary Targets 38 | . 3 2 6 1 . 1 . 1 4 5 1 5 . 1 . 1 2 . 1 1 1 . 1 . . . . . . . . 1 . . Max Gunslinging Chain 2 | . 1 1 2 1 . 1 . 1 1 2 1 1 . 1 . 1 1 . 1 1 1 . 1 . . . . . . . . 1 . . Shots Hit Robots 1469 | 4 54 21 85 10 . 6 86 35 174 76 77 98 . 101 6 55 31 . 45 12 36 . 20 11 22 15 . 63 34 80 8 93 83 28 Core Hits 714 | 3 24 7 37 5 . 4 34 26 80 24 31 90 . 62 6 42 18 . 19 8 17 . 11 4 9 14 . 24 15 25 5 23 36 11 Critical Kills 23 | . . . . 1 . . . . . . 2 . . 6 1 3 1 . 5 1 1 . 2 . . . . . . . . . . . Critical Parts Destroyed 35 | . 2 . . . . . . . . 1 1 1 . 15 . 5 1 . 1 1 3 . . . . . . . . . . 3 1 . Critical Strikes 109 | . 2 . . 1 . . 1 . 2 2 3 1 . 21 1 10 3 . 7 2 4 . 3 . 1 2 . 11 5 4 . 5 13 5 Burn 15 | . . . . . . . . . 2 1 . . . . . 2 1 . 1 . . . 1 . . 2 . 2 2 1 . . . . Meltdown 1 | . . . . . . . . . . . . . . . 1 . . . . . . . . . . . . . . . . . . . Destroy 58 | . 2 . . 1 . . 1 . . 1 3 1 . 21 . 8 2 . 6 2 4 . 2 . . . . . . . . 3 1 . Blast 28 | . . . . . . . . . . . . . . . . . . . . . . . . . 1 . . 9 3 3 . . 12 . Corrupt 7 | . . . . . . . . . . . . . . . . . . . . . . . . . . . . . . . . 2 . 5 Melee Attacks 12 | . . . 5 . . . 7 . . . . . . . . . . . . . . . . . . . . . . . . . . . Impact 5 | . . . 5 . . . . . . . . . . . . . . . . . . . . . . . . . . . . . . . Slashing . | . . . . . . . . . . . . . . . . . . . . . . . . . . . . . . . . . . . Piercing 7 | . . . . . . . 7 . . . . . . . . . . . . . . . . . . . . . . . . . . . Sneak Attacks . | . . . . . . . . . . . . . . . . . . . . . . . . . . . . . . . . . . . Combat Hostiles . | . . . . . . . . . . . . . . . . . . . . . . . . . . . . . . . . . . . Follow-up Attacks . | . . . . . . . . . . . . . . . . . . . . . . . . . . . . . . . . . . . Damage Inflicted 38964 | 52 720 314 1382 173 . 97 2157 1417 3343 1469 1564 2136 . 1961 444 1533 694 . 1278 1012 937 . 666 366 706 590 . 1797 1363 2605 236 3606 3276 1070 Guns 23487 | 41 676 314 1346 158 . 97 893 492 2837 1469 1503 1579 . 753 . 1045 694 . 1268 325 937 . 529 166 338 368 . 972 695 1376 115 1394 638 469 Cannons 11062 | . . . . . . . 852 228 93 . . 82 . 993 53 80 . . . . . . 137 200 368 222 . 825 627 1229 121 1972 2525 455 Explosions 3826 | . . . . . . . 365 697 299 . . 475 . 215 391 408 . . . 653 . . . . . . . . . . . 240 . 83 Melee . | . . . . . . . . . . . . . . . . . . . . . . . . . . . . . . . . . . . Ramming 589 | 11 44 . 36 15 . . 47 . 114 . 61 . . . . . . . 10 34 . . . . . . . . 41 . . . 113 63 Kinetic 18670 | 16 503 314 1346 158 . 97 893 492 1821 1058 1503 1469 . 844 . 764 369 . 515 187 736 . 307 139 151 130 . 564 370 461 . 640 2368 455 Thermal 14533 | 25 173 . . . . . . 143 1043 411 . 322 . 873 53 361 325 . 753 791 92 . 280 227 555 460 . 1233 952 2144 236 2801 197 83 Explosive 1542 | . . . . . . . 271 117 140 . . . . 215 391 408 . . . . . . . . . . . . . . . . . . Electromagnetic 3630 | . . . . . . . 946 665 225 . . 345 . 29 . . . . . . 109 . 79 . . . . . . . . 165 598 469 Impact . | . . . . . . . . . . . . . . . . . . . . . . . . . . . . . . . . . . . Slashing . | . . . . . . . . . . . . . . . . . . . . . . . . . . . . . . . . . . . Piercing . | . . . . . . . . . . . . . . . . . . . . . . . . . . . . . . . . . . . Highest Corruption 43 | . . . . . . . 6 11 12 15 6 6 6 12 . 1 8 8 11 . . . 24 . . . . 5 . . 3 8 9 43 Average Corruption 9 | . . . . . . . 6 7 11 14 4 6 6 9 . 1 6 8 9 . . . 23 . . . . 4 . . 3 4 4 24 Corruption Purged 10 | . . . . . . . . . . . . . . . . . . . . . . . . . . . . . . . . 10 . . Corruption Blocked . | . . . . . . . . . . . . . . . . . . . . . . . . . . . . . . . . . . . Effects 485 | . . . . . . . 30 48 115 26 29 45 2 41 . . 13 3 20 . . . 17 . . . . 14 . . 3 13 12 54 Message Errors 100 | . . . . . . . 3 12 24 4 7 8 1 7 . . 6 1 4 . . . 5 . . . . 6 . . . . 4 8 Matter Fused 118 | . . . . . . . 3 10 29 5 6 19 . 11 . . 2 . 3 . . . 7 . . . . 4 . . 1 3 1 14 Heat Flow Errors 53 | . . . . . . . 5 7 14 2 3 3 1 5 . . 3 . 3 . . . 1 . . . . . . . . 2 . 4 Energy Discharges 65 | . . . . . . . 4 5 15 5 4 6 . 7 . . . 1 2 . . . . . . . . 1 . . 1 4 4 6 Parts Rejected 6 | . . . . . . . 1 . 1 2 . . . . . . . . . . . . . . . . . . . . . . 1 1 Parts Fused 4 | . . . . . . . 1 1 . . . . . 1 . . . . . . . . . . . . . 1 . . . . . . Data Loss (minor) 47 | . . . . . . . 6 5 9 5 4 3 . 6 . . . . 2 . . . 2 . . . . 1 . . . 1 1 2 Data Loss (major) 23 | . . . . . . . 3 4 6 . . 2 . 2 . . 1 1 1 . . . . . . . . . . . 1 1 . 1 Misfires 23 | . . . . . . . 4 2 6 1 3 1 . 1 . . . . . . . . 1 . . . . . . . . 1 . 3 Alerts 5 | . . . . . . . . 1 2 . 1 1 . . . . . . . . . . . . . . . . . . . . . . Misdirections 17 | . . . . . . . . . 1 1 . . . . . . . . 1 . . . . . . . . . . . . . . 14 Weapon Failures 24 | . . . . . . . . 1 8 1 1 2 . 1 . . 1 . 4 . . . 1 . . . . 1 . . . 1 1 1 Overload Shots 1 | . . . . . . . . . . . . . . . . . 1 . . . . . . . . . . . . . . . . . Overflow Damage 820 | . . . . . . . 52 38 18 . 43 . . 69 . 1 . . . 82 . . . 19 34 42 . . 40 . . 217 122 43 Projectiles 495 | . . . . . . . 14 . . . . . . 65 . . . . . . . . . 19 34 42 . . 40 . . 144 118 19 Explosions 297 | . . . . . . . 38 38 18 . 43 . . 4 . 1 . . . 82 . . . . . . . . . . . 73 . . Melee 28 | . . . . . . . . . . . . . . . . . . . . . . . . . . . . . . . . . 4 24 Knockbacks 40 | . 1 . . . . . . . 2 . . . . . . . . . . . . . . 1 . . . 4 4 2 . . 20 6 Impact 7 | . 1 . . . . . . . 2 . . . . . . . . . . . . . . . . . . . 1 . . . 2 1 Kinetic 28 | . . . . . . . . . . . . . . . . . . . . . . . . 1 . . . 3 3 2 . . 16 3 Secondary 5 | . . . . . . . . . . . . . . . . . . . . . . . . . . . . 1 . . . . 2 2 Self-Inflicted Damage 589 | . . . . . . . 15 76 109 . 189 15 . 52 . . . . . 68 . . . . . . . . . . . 65 . . Shots 17 | . . . . . . . 1 5 4 . 3 1 . 1 . . . . . 1 . . . . . . . . . . . 1 . . Rammed 54 | 3 7 . 4 4 . . 5 . 11 . 5 . . . . . . . 1 2 . . . . . . . . 3 . . . 6 3 Targets Rammed 62 | 3 10 . 4 4 . . 6 . 12 . 7 . . . . . . . 1 2 . . . . . . . . 3 . . . 6 4 Kicked . | . . . . . . . . . . . . . . . . . . . . . . . . . . . . . . . . . . . Crushed 8 | . 3 . . . . . 1 . 1 . 2 . . . . . . . . . . . . . . . . . . . . . . 1 Highest Temperature 395 | 40 110 125 162 . . . 260 257 315 244 205 395 160 288 132 330 360 . 223 183 72 . 225 382 196 185 . 198 195 366 154 376 12 160 Average Temperature 85 | 20 33 58 13 . . . 53 64 92 86 53 114 144 100 52 94 105 . 65 71 32 . 95 163 127 71 . 116 92 107 81 140 7 89 Received Heat Transfer 4582 | . 78 102 207 . . . 173 12 533 171 267 301 . 147 . 498 4 . 282 130 72 . . 45 123 42 . 351 230 385 4 344 18 63 Effects 8 | . . . . . . . . . 2 . . 1 . . . 3 1 . 1 . . . . . . . . . . . . . . . Shutdowns 1 | . . . . . . . . . . . . . . . . . 1 . . . . . . . . . . . . . . . . . Energy Bleed 1 | . . . . . . . . . . . . . . . . . . . 1 . . . . . . . . . . . . . . . Interference 6 | . . . . . . . . . 2 . . 1 . . . 3 . . . . . . . . . . . . . . . . . . Siege Activations 6 | . . . . . . . . . . . . . . . . . 1 . . . . . . . . . . 1 1 1 . 2 . . Total Turns 136 | . . . . . . . . . . . . . . . . . 11 . . . . . . . . . . 21 17 22 . 65 . . Longest Duration 37 | . . . . . . . . . . . . . . . . . 11 . . . . . . . . . . 21 17 22 . 37 . . Martial Activations . | . . . . . . . . . . . . . . . . . . . . . . . . . . . . . . . . . . . Shielding Activations . | . . . . . . . . . . . . . . . . . . . . . . . . . . . . . . . . . . . Robots Disrupted 3 | . . . . . . . . . . . . . . . . . . . . . 2 . 1 . . . . . . . . . . . Combat Hostiles 3 | . . . . . . . . . . . . . . . . . . . . . 2 . 1 . . . . . . . . . . . Robots Corrupted 4 | . . . . . . . . . . . . . . . . . . . . . . . . . . . . . . . . 1 1 2 Combat Hostiles 3 | . . . . . . . . . . . . . . . . . . . . . . . . . . . . . . . . 1 . 2 Parts Fried 15 | . . . . . . . 3 2 . . . . . . . . 1 . . . . . . . . . . . . . . . 3 6 Impact Corruptions 4 | . . . . . . . . . . . . . . . . . . . . . . . . . . . . . . . . . 2 2 Robots Melted 3 | . . . . . . . . . . . . . . . 1 . . . . . . . . . . . . 1 . 1 . . . . Combat Hostiles 2 | . . . . . . . . . . . . . . . . . . . . . . . . . . . . 1 . 1 . . . . Parts Melted 37 | . 2 . . . . . . . 2 . . . . 1 . 1 . . 2 . . . 3 . 1 4 . 8 . 5 2 6 . . Heat Transferred 20195 | 74 518 . . . . . . 200 2270 814 . 211 . 1073 74 911 592 . 1184 585 111 . 548 335 855 1020 . 2019 1184 2344 259 2629 185 200 Parts Sabotaged . | . . . . . . . . . . . . . . . . . . . . . . . . . . . . . . . . . . . Parts Stolen . | . . . . . . . . . . . . . . . . . . . . . . . . . . . . . . . . . . . Parts Stripped . | . . . . . . . . . . . . . . . . . . . . . . . . . . . . . . . . . . . Power Chain Reactions 12 | . . . . . . . . 4 2 . . 4 . . . . . . . . . . . . . . . . . . . 1 . 1 Alert | -11 -10 -10 -9 -9 -9 -8 -8 -8 -8 -8 -7 -7 -7 -7 -6 -6 -6 -6 -6 -5 -5 -5 -5 -4 -4 -4 -4 -3 -3 -3 -3 -3 -2 -1 ------- Run | Yrd Mat Min Mat Min Exi Min Mat Gar Mat Gar Fac Gar Fac Gar Fac Ext Cet Arc Hub Fac Gar Fac Gar Fac Upp Upp War Pro Res Gar Res Gar Res Acc Maximum Alert Level 4 | . . . 1 . . . 1 3 2 3 1 4 2 3 2 1 . . . 1 1 . . . . . . . . . . . . . Low Security (%) 65 | 100 100 100 80 100 . 100 99 10 61 . . . . . 50 76 100 100 100 92 35 100 100 100 . . . . 100 100 100 100 100 100 Level 1 16 | . . . 19 . . . . 38 30 16 100 20 . . 1 23 . . . 7 64 . . . . . . . . . . . . . Level 2 8 | . . . . . . . . 21 8 66 . 19 100 43 47 . . . . . . . . . . . . . . . . . . . Level 3 8 | . . . . . . . . 29 . 16 . 47 . 56 . . . . . . . . . . . . . . . . . . . . Level 4 . | . . . . . . . . . . . . 12 . . . . . . . . . . . . . . . . . . . . . . Level 5 . | . . . . . . . . . . . . . . . . . . . . . . . . . . . . . . . . . . . High Security . | . . . . . . . . . . . . . . . . . . . . . . . . . . . . . . . . . . . Max Security . | . . . . . . . . . . . . . . . . . . . . . . . . . . . . . . . . . . . Peak Influence 1260 | 5 95 80 268 42 . 90 205 895 527 762 399 1260 661 949 497 241 150 155 133 201 238 124 158 78 . . . . 49 128 72 93 182 95 Initial 661 | . . . . 42 . . . 122 436 341 399 227 661 448 497 49 106 11 53 60 105 124 79 78 . . . . . . 72 . 40 95 Average 215 | . 31 28 153 2 . 17 106 506 184 518 320 761 652 680 298 78 91 24 33 106 205 120 126 18 . . . . 10 57 9 42 37 23 Influence Increases 10417 | 5 489 100 640 . . 90 730 783 1113 501 482 1163 . 681 78 555 240 165 245 201 143 . 161 46 45 277 . 155 126 168 48 246 413 328 Destroy 0b10 Robot/C 5873 | . 280 80 420 . . 80 460 420 660 300 240 605 . 315 45 285 120 75 135 75 105 . 105 15 45 195 . 135 60 114 12 168 252 72 Destroy 0b10 Robot/NC 271 | 5 35 . 40 . . . 25 . 60 . 25 . . 12 12 16 4 . 4 . . . . 4 . . . 4 4 . 3 . 6 12 Destroy Leader 1010 | . 66 20 104 . . 10 132 20 204 20 64 30 . 40 8 32 . . 40 8 16 . 16 8 . 32 . 16 16 24 6 24 36 18 Allied During Kill 454 | . . . . . . . . . . . . 35 . 10 . 178 102 75 . . . . . . . 50 . . . . . . . 4 Successful Hack 214 | . 13 . 23 . . . 44 14 24 16 11 . . 11 . 12 . . . . . . . 11 . . . . . 9 17 9 . . Select Force Hacks 98 | . . . 30 . . . 30 . . . . . . . . . . . 38 . . . . . . . . . . . . . . . Disable Machine 393 | . . . . . . . . 15 75 . 90 . . 12 . 12 12 12 12 60 12 . . . . . . . 36 . . 9 18 18 Anti-Garrison Action 813 | . . . . . . . . 250 . 150 . 300 . 113 . . . . . . . . . . . . . . . . . . . . Destroy Structure 541 | . 5 . 8 . . . 24 19 45 . 52 19 . 60 13 20 2 3 16 58 10 . 4 8 . . . . 10 21 10 36 56 42 Partial Spotted 24 | . 15 . . . . . . . . . . . . . . . . . . . . . . . . . . . . . . . . 9 Lose Combat Pursuer 726 | . 75 . 15 . . . 15 45 45 15 . 174 . 108 . . . . . . . . 36 . . . . . . . . . 45 153 Influence Decreases 10337 | 5 487 102 532 108 . 90 541 77 1482 265 919 228 619 373 925 466 403 38 275 175 56 124 125 196 45 272 5 155 126 40 176 173 327 407 Entered New Map 3231 | . . 2 . 66 . . . 67 459 185 363 98 599 193 452 53 85 17 102 65 46 114 35 72 . . 5 . . . 56 . 33 64 Time Decay 5162 | 5 487 100 482 42 . 90 501 . 663 . 506 . 20 . 198 332 198 21 163 110 . 10 . 124 45 272 . 85 126 . 120 . 194 268 Lost Part 1055 | . . . 50 . . . 40 10 60 80 50 110 . 100 . 21 . . 10 . 10 . 90 . . . . 70 . 40 . 173 100 41 Lost Ally 314 | . . . . . . . . . . . . 20 . 80 . 60 120 . . . . . . . . . . . . . . . . 34 Purge Threat 575 | . . . . . . . . . 300 . . . . . 275 . . . . . . . . . . . . . . . . . . . Squads Dispatched 49 | . 3 . 4 1 . . 5 . 7 . 6 . . . 1 2 . . 4 1 . . . 3 . . . . 3 . 1 . 3 5 Investigation 16 | . . . 4 1 . . 3 . 3 . . . . . . . . . 2 . . . . 2 . . . . 1 . . . . . Extermination 8 | . . . . . . . . . . . 3 . . . 1 . . . . . . . . . . . . . . . 1 . 1 2 Reinforcement 23 | . 3 . . . . . 2 . 3 . 2 . . . . 2 . . 2 1 . . . 1 . . . . 2 . . . 2 3 Assault . | . . . . . . . . . . . . . . . . . . . . . . . . . . . . . . . . . . . Garrison 2 | . . . . . . . . . 1 . 1 . . . . . . . . . . . . . . . . . . . . . . . Intercept . | . . . . . . . . . . . . . . . . . . . . . . . . . . . . . . . . . . . Searches Triggered . | . . . . . . . . . . . . . . . . . . . . . . . . . . . . . . . . . . . Construction Impeded 3 | . . . . . . . . . . . . . . . . 1 . . 1 . . . . 1 . . . . . . . . . . Haulers Reinforced 2 | . . . . . . . . . . . 1 . . . . . . . . . . . . . . . . . 1 . . . . . Active Scanning Responses . | . . . . . . . . . . . . . . . . . . . . . . . . . . . . . . . . . . . Cargo Convoy Interrupts . | . . . . . . . . . . . . . . . . . . . . . . . . . . . . . . . . . . . Stealth | -11 -10 -10 -9 -9 -9 -8 -8 -8 -8 -8 -7 -7 -7 -7 -6 -6 -6 -6 -6 -5 -5 -5 -5 -4 -4 -4 -4 -3 -3 -3 -3 -3 -2 -1 --------- Run | Yrd Mat Min Mat Min Exi Min Mat Gar Mat Gar Fac Gar Fac Gar Fac Ext Cet Arc Hub Fac Gar Fac Gar Fac Upp Upp War Pro Res Gar Res Gar Res Acc Distress Signals 12 | . 3 . 2 . . . 3 . 3 . . . . . . . . . . . . . . . . . . . 1 . . . . . Communications Jammed 67 | . . . . . . . . . . . . . . . . . . . . . . . . . . . . . 3 . 7 . 29 28 Distress Signals 64 | . . . . . . . . . . . . . . . . . . . . . . . . . . . . . 3 . 7 . 26 28 Times Spotted 479 | . 33 4 30 2 . 4 34 22 44 15 17 39 . 27 4 24 10 . 9 5 8 . 10 1 4 14 . 9 18 8 4 15 30 35 Peak Tracking Total 13 | . 4 2 5 2 . 3 4 6 4 6 3 7 . 4 4 5 5 . 3 5 3 . 12 1 3 4 . 5 7 2 3 4 7 13 Tactical Retreats 33 | . 3 . 1 . . . 1 2 2 1 . 7 . 6 . . . . . . . . 1 . . . . . . . . . 2 7 Traps | -11 -10 -10 -9 -9 -9 -8 -8 -8 -8 -8 -7 -7 -7 -7 -6 -6 -6 -6 -6 -5 -5 -5 -5 -4 -4 -4 -4 -3 -3 -3 -3 -3 -2 -1 ------- Run | Yrd Mat Min Mat Min Exi Min Mat Gar Mat Gar Fac Gar Fac Gar Fac Ext Cet Arc Hub Fac Gar Fac Gar Fac Upp Upp War Pro Res Gar Res Gar Res Acc Traps Triggered 40 | . 1 . 2 . . . . 12 1 2 1 5 . 4 1 4 . . 1 . . . 4 . . . . . . . 1 . 1 . Indirectly 1 | . . . . . . . . . 1 . . . . . . . . . . . . . . . . . . . . . . . . . Trap Hack Attempts . | . . . . . . . . . . . . . . . . . . . . . . . . . . . . . . . . . . . Triggered . | . . . . . . . . . . . . . . . . . . . . . . . . . . . . . . . . . . . Disarmed . | . . . . . . . . . . . . . . . . . . . . . . . . . . . . . . . . . . . Reprogrammed . | . . . . . . . . . . . . . . . . . . . . . . . . . . . . . . . . . . . Reused . | . . . . . . . . . . . . . . . . . . . . . . . . . . . . . . . . . . . Traps Extracted . | . . . . . . . . . . . . . . . . . . . . . . . . . . . . . . . . . . . Installed . | . . . . . . . . . . . . . . . . . . . . . . . . . . . . . . . . . . . Triggered . | . . . . . . . . . . . . . . . . . . . . . . . . . . . . . . . . . . . Machines | -11 -10 -10 -9 -9 -9 -8 -8 -8 -8 -8 -7 -7 -7 -7 -6 -6 -6 -6 -6 -5 -5 -5 -5 -4 -4 -4 -4 -3 -3 -3 -3 -3 -2 -1 ---------- Run | Yrd Mat Min Mat Min Exi Min Mat Gar Mat Gar Fac Gar Fac Gar Fac Ext Cet Arc Hub Fac Gar Fac Gar Fac Upp Upp War Pro Res Gar Res Gar Res Acc Machines Disabled 46 | . . . 1 . . . . 5 5 4 6 3 . 2 . 2 1 1 1 5 1 . . . 1 . . . 3 . . 1 2 2 Max in Single Turn 5 | . . . 1 . . . . 3 1 2 5 1 . 1 . 1 1 . 1 5 1 . . . 1 . . . 1 . . 1 1 1 Garrison Access 3 | . . . . . . . . . . . . . . . . . . . . . . . . 1 . . . . . . . . 1 1 Garrison Relay 9 | . . . . . . . . 2 . 3 . 3 . 1 . . . . . . . . . . . . . . . . . . . . Phase Generator 1 | . . . . . . . . 1 . . . . . . . . . . . . . . . . . . . . . . . . . . Network Hub 1 | . . . . . . . . . . . . . . . . . . . 1 . . . . . . . . . . . . . . . Energy Cycler 1 | . . . . . . . . . . . . . . . . 1 . . . . . . . . . . . . . . . . . . Machines Repaired . | . . . . . . . . . . . . . . . . . . . . . . . . . . . . . . . . . . . Machines Dismantled . | . . . . . . . . . . . . . . . . . . . . . . . . . . . . . . . . . . . Machines Sabotaged 1 | . . . . . . . . . . . . . . . . . . . 1 . . . . . . . . . . . . . . . Overloaded Fab Kills . | . . . . . . . . . . . . . . . . . . . . . . . . . . . . . . . . . . . Hacking | -11 -10 -10 -9 -9 -9 -8 -8 -8 -8 -8 -7 -7 -7 -7 -6 -6 -6 -6 -6 -5 -5 -5 -5 -4 -4 -4 -4 -3 -3 -3 -3 -3 -2 -1 --------- Run | Yrd Mat Min Mat Min Exi Min Mat Gar Mat Gar Fac Gar Fac Gar Fac Ext Cet Arc Hub Fac Gar Fac Gar Fac Upp Upp War Pro Res Gar Res Gar Res Acc Machines Accessed 85 | . 7 . 7 1 2 . 12 2 10 1 6 1 1 1 3 6 1 . 2 1 . 1 . 5 . 1 . . 2 1 4 1 3 3 Terminals 44 | . 6 . 3 . . . 7 2 7 1 1 1 . 1 . 6 1 . 2 . . . . 2 . . . . . 1 1 1 . 1 Fabricators 2 | . . . . . . . . . . . 1 . . . . . . . . . . . . . . . . . . . 1 . . . Repair Stations 3 | . . . 1 . . . 1 . . . . . . . . . . . . . . . . 1 . . . . . . . . . . Recycling Units 13 | . 1 . 2 . . . 1 . 1 . 2 . . . 3 . . . . . . . . 1 . . . . 1 . . . . 1 Scanalyzers 8 | . . . 1 . . . 2 . 1 . 1 . . . . . . . . . . . . . . . . . . . 1 . 2 . Garrison Access 11 | . . . . . . . 1 . 1 . 1 . 1 . . . . . . 1 . 1 . 1 . . . . 1 . 1 . 1 1 Total Hacks 210 | . 22 . 20 1 2 . 37 4 30 2 16 2 1 2 5 8 2 . 5 1 . 1 . 21 . 1 . . 3 4 6 2 5 7 Successful 108 | . 10 . 14 1 2 . 25 1 13 1 8 . 1 1 2 5 . . 1 1 . 1 . 8 . 1 . . 1 1 4 1 4 1 Failed 98 | . 11 . 6 . . . 12 3 16 1 7 2 . 1 3 3 2 . 4 . . . . 13 . . . . 2 3 2 1 . 6 Catastrophic 23 | . . . . . . . 2 1 7 . 2 1 . . . 1 2 . 1 . . . . 2 . . . . 1 2 1 . . . Database Lockouts 4 | . 1 . . . . . . . 1 . 1 . . . . . . . . . . . . . . . . . . . . . 1 . Manual 110 | . 20 . 13 . 1 . 23 1 17 . 7 . . . . 1 1 . 5 . . . . 13 . . . . . 3 2 1 . 2 Terminals 129 | . 20 . 10 . . . 20 4 25 2 6 2 . 2 . 8 2 . 5 . . . . 13 . . . . . 4 2 2 . 2 Fabricators 2 | . . . . . . . . . . . 1 . . . . . . . . . . . . . . . . . . . 1 . . . Repair Stations 6 | . . . 1 . . . 3 . . . . . . . . . . . . . . . . 2 . . . . . . . . . . Recycling Units 35 | . 2 . 6 . . . 4 . 2 . 6 . . . 5 . . . . . . . . 4 . . . . 2 . . . . 4 Scanalyzers 21 | . . . 3 . . . 9 . 2 . 2 . . . . . . . . . . . . . . . . . . . 2 . 3 . Garrison Access 13 | . . . . . . . 1 . 1 . 1 . 1 . . . . . . 1 . 1 . 2 . . . . 1 . 1 . 2 1 Terminal Hacks 29 | . 2 . 2 1 2 . 3 1 4 1 2 . . 1 . 4 . . . . . . . 3 . 1 . . . 1 . 1 . . Record 1 | . . . . . 1 . . . . . . . . . . . . . . . . . . . . . . . . . . . . . Robot Analysis 1 | . 1 . . . . . . . . . . . . . . . . . . . . . . . . . . . . . . . . . Open Door 6 | . . . . 1 . . . . . . . . . . . 4 . . . . . . . . . 1 . . . . . . . . Emergency Access Points 4 | . . . . . . . . 1 . . . . . 1 . . . . . . . . . . . . . . . 1 . 1 . . Terminal Index 4 | . 1 . 1 . . . 1 . . . . . . . . . . . . . . . . 1 . . . . . . . . . . Unreport Threat 1 | . . . . . . . . . 1 . . . . . . . . . . . . . . . . . . . . . . . . . Dispatch Records 1 | . . . . . . . . . . . 1 . . . . . . . . . . . . . . . . . . . . . . . Maintenance Status 3 | . . . . . . . . . 1 . 1 . . . . . . . . . . . . 1 . . . . . . . . . . Recall Investigation 2 | . . . 1 . . . 1 . . . . . . . . . . . . . . . . . . . . . . . . . . . Hauler Manifests 1 | . . . . . . . . . 1 . . . . . . . . . . . . . . . . . . . . . . . . . Registered Components 1 | . . . . . . . . . . . . . . . . . . . . . . . . 1 . . . . . . . . . . Zone Layout 2 | . . . . . . . 1 . 1 . . . . . . . . . . . . . . . . . . . . . . . . . Security Stations 1 | . . . . . . . . . . 1 . . . . . . . . . . . . . . . . . . . . . . . . Proto ID Catalog 1 | . . . . . 1 . . . . . . . . . . . . . . . . . . . . . . . . . . . . . Fabricator Hacks 1 | . . . . . . . . . . . . . . . . . . . . . . . . . . . . . . . 1 . . . Network Status 1 | . . . . . . . . . . . . . . . . . . . . . . . . . . . . . . . 1 . . . Repair Station Hacks 1 | . . . . . . . 1 . . . . . . . . . . . . . . . . . . . . . . . . . . . Scan Component 1 | . . . . . . . 1 . . . . . . . . . . . . . . . . . . . . . . . . . . . Recycling Unit Hacks 8 | . 1 . 1 . . . 1 . . . 2 . . . 2 . . . . . . . . 1 . . . . . . . . . . Retrieve Components 8 | . 1 . 1 . . . 1 . . . 2 . . . 2 . . . . . . . . 1 . . . . . . . . . . Scanalyzer 16 | . . . 3 . . . 8 . 1 . 1 . . . . . . . . . . . . . . . . . . . 1 . 2 . Insert Component 1 | . . . . . . . . . . . . . . . . . . . . . . . . . . . . . . . . . 1 . Retrieve Study 15 | . . . 3 . . . 8 . 1 . 1 . . . . . . . . . . . . . . . . . . . 1 . 1 . Garrison Access Hacks 13 | . . . . . . . 1 . 1 . 1 . 1 . . . . . . 1 . 1 . 2 . . . . 1 . 1 . 2 1 Unlock Access 8 | . . . . . . . 1 . 1 . 1 . 1 . . . . . . 1 . 1 . . . . . . 1 . 1 . . . Seal Access 3 | . . . . . . . . . . . . . . . . . . . . . . . . 1 . . . . . . . . 1 1 Coupler Status 2 | . . . . . . . . . . . . . . . . . . . . . . . . 1 . . . . . . . . 1 . Unauthorized Hacks 40 | . 7 . 8 . . . 11 . 7 . 2 . . . . 1 . . 1 . . . . 2 . . . . . . 1 . . . Terminals 33 | . 7 . 6 . . . 9 . 7 . 1 . . . . 1 . . 1 . . . . . . . . . . . 1 . . . Track 1 | . . . 1 . . . . . . . . . . . . . . . . . . . . . . . . . . . . . . . Botnet 10 | . 1 . 2 . . . 2 . 2 . 1 . . . . 1 . . . . . . . . . . . . . . 1 . . . Skim 21 | . 6 . 3 . . . 7 . 5 . . . . . . . . . . . . . . . . . . . . . . . . . Sabotage 1 | . . . . . . . . . . . . . . . . . . . 1 . . . . . . . . . . . . . . . Fabricators . | . . . . . . . . . . . . . . . . . . . . . . . . . . . . . . . . . . . Repair Stations 1 | . . . . . . . . . . . . . . . . . . . . . . . . 1 . . . . . . . . . . Patch 1 | . . . . . . . . . . . . . . . . . . . . . . . . 1 . . . . . . . . . . Recycling Units 6 | . . . 2 . . . 2 . . . 1 . . . . . . . . . . . . 1 . . . . . . . . . . Monitor 2 | . . . . . . . . . . . 1 . . . . . . . . . . . . 1 . . . . . . . . . . Mask 2 | . . . 1 . . . 1 . . . . . . . . . . . . . . . . . . . . . . . . . . . Tunnel 2 | . . . 1 . . . 1 . . . . . . . . . . . . . . . . . . . . . . . . . . . Scanalyzers . | . . . . . . . . . . . . . . . . . . . . . . . . . . . . . . . . . . . Garrison Access . | . . . . . . . . . . . . . . . . . . . . . . . . . . . . . . . . . . . Data Cores Recovered 1 | . . . 1 . . . . . . . . . . . . . . . . . . . . . . . . . . . . . . . Used . | . . . . . . . . . . . . . . . . . . . . . . . . . . . . . . . . . . . Hacking Detections 63 | . 7 . 7 . . . 10 1 8 1 5 1 1 1 2 2 1 . 2 . . 1 . 4 . . . . 1 1 4 1 . 2 Full Trace Events 9 | . . . 1 . . . 1 1 3 . . 1 . . . . . . 1 . . . . 1 . . . . . . . . . . Feedback Events . | . . . . . . . . . . . . . . . . . . . . . . . . . . . . . . . . . . . Feedback Blocked . | . . . . . . . . . . . . . . . . . . . . . . . . . . . . . . . . . . . Robot Schematics Acquired . | . . . . . . . . . . . . . . . . . . . . . . . . . . . . . . . . . . . Robots Built . | . . . . . . . . . . . . . . . . . . . . . . . . . . . . . . . . . . . Authchips . | . . . . . . . . . . . . . . . . . . . . . . . . . . . . . . . . . . . Time . | . . . . . . . . . . . . . . . . . . . . . . . . . . . . . . . . . . . Total Robot Build Rating . | . . . . . . . . . . . . . . . . . . . . . . . . . . . . . . . . . . . Part Schematics Acquired . | . . . . . . . . . . . . . . . . . . . . . . . . . . . . . . . . . . . Parts Built . | . . . . . . . . . . . . . . . . . . . . . . . . . . . . . . . . . . . Authchips . | . . . . . . . . . . . . . . . . . . . . . . . . . . . . . . . . . . . Time . | . . . . . . . . . . . . . . . . . . . . . . . . . . . . . . . . . . . Total Part Build Rating . | . . . . . . . . . . . . . . . . . . . . . . . . . . . . . . . . . . . Part Studies Acquired 13 | . . . 3 . . . 6 . 1 . 1 . . . . . . . . . . . . . . . . . . . 1 . 1 . Parts Repaired . | . . . . . . . . . . . . . . . . . . . . . . . . . . . . . . . . . . . Time . | . . . . . . . . . . . . . . . . . . . . . . . . . . . . . . . . . . . Parts Recycled . | . . . . . . . . . . . . . . . . . . . . . . . . . . . . . . . . . . . Recycled Matter . | . . . . . . . . . . . . . . . . . . . . . . . . . . . . . . . . . . . Retrieved Matter . | . . . . . . . . . . . . . . . . . . . . . . . . . . . . . . . . . . . Retrieved Components 20 | . 3 . 3 . . . 5 . . . 3 . . . 5 . . . . . . . . 1 . . . . . . . . . . Parts Scanalyzed . | . . . . . . . . . . . . . . . . . . . . . . . . . . . . . . . . . . . Part Schematics Acquired . | . . . . . . . . . . . . . . . . . . . . . . . . . . . . . . . . . . . Parts Damaged . | . . . . . . . . . . . . . . . . . . . . . . . . . . . . . . . . . . . Bothacking | -11 -10 -10 -9 -9 -9 -8 -8 -8 -8 -8 -7 -7 -7 -7 -6 -6 -6 -6 -6 -5 -5 -5 -5 -4 -4 -4 -4 -3 -3 -3 -3 -3 -2 -1 ------------ Run | Yrd Mat Min Mat Min Exi Min Mat Gar Mat Gar Fac Gar Fac Gar Fac Ext Cet Arc Hub Fac Gar Fac Gar Fac Upp Upp War Pro Res Gar Res Gar Res Acc Used RIF Installer 6 | . . . . . . . . 1 . 1 . 1 . 1 . . . . . . 1 . . . . . . . . 1 . . . . Threat Obfuscator 2 | . . . . . . . . . . . . 1 . . . . . . . . . . . . . . . . . 1 . . . . Zone Cloak 2 | . . . . . . . . . . . . . . 1 . . . . . . 1 . . . . . . . . . . . . . Watcher Feeds 1 | . . . . . . . . . . 1 . . . . . . . . . . . . . . . . . . . . . . . . Robots Hacked 7 | . . . . . . . . . 1 . 2 1 . . 1 . . . . . . . . . . . . . . . 1 . 1 . Non-combat 5 | . . . . . . . . . 1 . 1 . . . 1 . . . . . . . . . . . . . . . 1 . 1 . Combat 2 | . . . . . . . . . . . 1 1 . . . . . . . . . . . . . . . . . . . . . . Robot Hacks Applied 10 | . . . . . . . . . 1 . 2 1 . . 4 . . . . . . . . . . . . . . . 1 . 1 . drop_inventory 2 | . . . . . . . . . . . . . . . . . . . . . . . . . . . . . . . 1 . 1 . purge_threat 3 | . . . . . . . . . 1 . . . . . 2 . . . . . . . . . . . . . . . . . . . disarm_traps 2 | . . . . . . . . . . . 1 . . . 1 . . . . . . . . . . . . . . . . . . . block_reporting 1 | . . . . . . . . . . . . . . . 1 . . . . . . . . . . . . . . . . . . . amplify_resonance 2 | . . . . . . . . . . . 1 1 . . . . . . . . . . . . . . . . . . . . . . Relay Couplers Released 33 | . . . . . . . . 7 . 12 . 11 . 3 . . . . . . . . . . . . . . . . . . . . Machine Destruction 33 | . . . . . . . . 7 . 12 . 11 . 3 . . . . . . . . . . . . . . . . . . . . Attached 10 | . . . . . . . . . 1 . 3 3 . 1 . . 1 . . . . . . . . . . . . . . . 1 . Fabnet Peak Effective % . | . . . . . . . . . . . . . . . . . . . . . . . . . . . . . . . . . . . Robots Rewired 15 | . . . . . . . . . . . . 6 . . . 6 . . . . . . . . 3 . . . . . . . . . Allies Hacked 1 | . . . . . . . . . . . . . . 1 . . . . . . . . . . . . . . . . . . . . Hacks Repelled . | . . . . . . . . . . . . . . . . . . . . . . . . . . . . . . . . . . . Allies | -11 -10 -10 -9 -9 -9 -8 -8 -8 -8 -8 -7 -7 -7 -7 -6 -6 -6 -6 -6 -5 -5 -5 -5 -4 -4 -4 -4 -3 -3 -3 -3 -3 -2 -1 -------- Run | Yrd Mat Min Mat Min Exi Min Mat Gar Mat Gar Fac Gar Fac Gar Fac Ext Cet Arc Hub Fac Gar Fac Gar Fac Upp Upp War Pro Res Gar Res Gar Res Acc Total Allies 30 | . . . . 2 . . . . . . . 7 . . . 13 5 . . . . . . . 3 . . . . . . . . . Largest Group 10 | . . . . 2 2 . . . . . . 6 5 5 . 10 9 8 . . . . . . 3 3 1 1 . . . . . . Highest-Rated Group 559 | . . . . 43 43 . . . . . . 120 100 100 . 415 559 559 . . . . . . 141 141 47 47 . . . . . . Highest-Rated Ally 159 | . . . . 31 31 . . . . . . 25 20 20 . 159 159 96 . . . . . . 47 47 47 47 . . . . . . Total Orders . | . . . . . . . . . . . . . . . . . . . . . . . . . . . . . . . . . . . Ally Attacks 212 | . . . . . . . . . . . . 18 . 18 . 82 37 25 . . . . . . . 21 . 1 . . . . . 10 Total Damage 5308 | . . . . . . . . . . . . 369 . 453 . 1623 866 821 . . . . . . . 639 . 18 . . . . . 519 Kills 36 | . . . . . . . . . . . . 4 . 2 . 11 5 5 . . . . . . . 7 . . . . . . . 2 Allies Corrupted 1 | . . . . . . . . . . . . . . 1 . . . . . . . . . . . . . . . . . . . . Allies Melted . | . . . . . . . . . . . . . . . . . . . . . . . . . . . . . . . . . . . Turrets Deployed 3 | . . . . . . . . . . . . . . . . . . . . . . . . . . . . . . . . . . 3 Intel | -11 -10 -10 -9 -9 -9 -8 -8 -8 -8 -8 -7 -7 -7 -7 -6 -6 -6 -6 -6 -5 -5 -5 -5 -4 -4 -4 -4 -3 -3 -3 -3 -3 -2 -1 ------- Run | Yrd Mat Min Mat Min Exi Min Mat Gar Mat Gar Fac Gar Fac Gar Fac Ext Cet Arc Hub Fac Gar Fac Gar Fac Upp Upp War Pro Res Gar Res Gar Res Acc Active Infowar (turns) 8962 | 30 1839 223 582 852 421 473 502 . . . . . . . . . . . . . . . . . . 2 . . 422 532 704 673 987 720 Terrain 935 | . . . . . . . . . . . . . . . . . . . . . . . . . . . . . . . . . 215 720 Traps 296 | . . . . . . . 296 . . . . . . . . . . . . . . . . . . . . . . . . . . . Seismic 4626 | 30 1839 223 582 852 421 473 206 . . . . . . . . . . . . . . . . . . . . . . . . . . . Jamming 3810 | . . . . . . . . . . . . . . . . . . . . . . . . . . 2 . . 422 532 704 673 987 490 Robot Analysis Total 1 | . 1 . . . . . . . . . . . . . . . . . . . . . . . . . . . . . . . . . Derelict Logs Recovered 5 | . . 2 . 1 . . . . . . . . . . . . . . . . . . . . 1 1 . . . . . . . . Drone Launches . | . . . . . . . . . . . . . . . . . . . . . . . . . . . . . . . . . . . Drone Recoveries . | . . . . . . . . . . . . . . . . . . . . . . . . . . . . . . . . . . . Exploration | -11 -10 -10 -9 -9 -9 -8 -8 -8 -8 -8 -7 -7 -7 -7 -6 -6 -6 -6 -6 -5 -5 -5 -5 -4 -4 -4 -4 -3 -3 -3 -3 -3 -2 -1 ------------- Run | Yrd Mat Min Mat Min Exi Min Mat Gar Mat Gar Fac Gar Fac Gar Fac Ext Cet Arc Hub Fac Gar Fac Gar Fac Upp Upp War Pro Res Gar Res Gar Res Acc Turns Passed 26954 | 96 1900 264 1449 852 421 473 1846 1411 2815 624 1374 1748 52 1200 406 929 416 69 460 220 576 31 495 458 677 696 59 652 429 532 704 673 987 960 Spaces Moved 12388 | 51 728 93 510 411 209 230 741 637 1018 223 589 740 28 520 313 583 196 44 226 119 316 19 245 261 383 406 37 282 196 229 396 250 450 709 Core 394 | 10 . . . . . . . . . . . . . 6 . . . . . . . . . . . . . . . . . . . 378 Treads 8959 | 41 728 93 506 411 209 230 741 637 1018 223 589 604 . 4 . . 149 44 226 119 316 19 87 . . . . 113 196 229 396 250 450 331 Legs . | . . . . . . . . . . . . . . . . . . . . . . . . . . . . . . . . . . . Wheels 3035 | . . . 4 . . . . . . . . 136 28 510 313 583 47 . . . . . 158 261 383 406 37 169 . . . . . . Hover . | . . . . . . . . . . . . . . . . . . . . . . . . . . . . . . . . . . . Flight . | . . . . . . . . . . . . . . . . . . . . . . . . . . . . . . . . . . . Fastest Speed 50 | 50 160 240 165 200 200 200 200 200 200 205 166 166 170 130 115 115 115 160 160 160 160 160 145 160 160 160 160 160 160 166 166 166 173 50 Average Speed 174 | 138 179 240 233 200 200 200 200 200 201 205 180 192 170 170 115 115 152 160 160 160 160 160 159 160 160 160 160 191 161 166 166 171 173 108 Slowest Speed 1200 | 160 240 240 400 200 200 200 200 200 280 290 206 280 170 1150 115 115 160 160 160 160 160 160 160 160 160 160 160 240 166 166 166 180 173 1200 Overloaded Moves . | . . . . . . . . . . . . . . . . . . . . . . . . . . . . . . . . . . . Propulsion Burnouts . | . . . . . . . . . . . . . . . . . . . . . . . . . . . . . . . . . . . Robots Hopped . | . . . . . . . . . . . . . . . . . . . . . . . . . . . . . . . . . . . Potential Cave-ins 1 | . . . . . . . . . . . . . . . . . . . . . . . . . . . . . . . . 1 . . Cave-ins Triggered 1 | . . . . . . . 1 . . . . . . . . . . . . . . . . . . . . . . . . . . . Exploration Rate (%) 42 | 5 93 26 36 92 60 69 63 88 81 36 18 69 1 63 16 90 66 64 26 6 48 1 36 8 64 56 9 60 14 29 15 25 15 29 Regions Visited 34 Branch Regions 12 Pre-discovered Areas 7 | . 2 . 1 . 1 . 3 . . . . . . . . . . . . . . . . . . . . . . . . . . . Known Exits Taken 13 | . . 1 1 . 1 . 1 . 1 . 1 . 1 . 1 . . . . 1 . 1 . . . . . . 1 . 1 . 1 . Unknown Exits Taken 13 | 1 1 . . 1 . 1 . . . . . . . . . 1 1 1 1 . . . . 1 1 1 1 1 . . . . . . Scrap Searched 7 | . . . . 1 . 1 . . . . . . . . . . . . . . . . . . 1 4 . . . . . . . . Spaces Dug 48 | . . . 3 . . . 5 17 12 . . . . . . . . . 3 . . . . . . . . . . . 2 1 . 5 Terrain Destroyed 493 | . . . 3 . . . 20 26 40 1 80 24 . 33 29 17 1 . 19 29 2 . 14 4 9 19 . 28 5 8 5 25 33 19 Melee 8 | . . . 3 . . . 5 . . . . . . . . . . . . . . . . . . . . . . . . . . . Projectile 184 | . . . . . . . . . . 1 1 1 . . . . 1 . 19 5 2 . 14 4 9 19 . 28 5 8 5 14 33 15 AOE 300 | . . . . . . . 15 26 40 . 79 23 . 32 29 17 . . . 24 . . . . . . . . . . . 11 . 4 Terrain Rammed . | . . . . . . . . . . . . . . . . . . . . . . . . . . . . . . . . . . . Walls Destroyed . | . . . . . . . . . . . . . . . . . . . . . . . . . . . . . . . . . . . Machines Disabled . | . . . . . . . . . . . . . . . . . . . . . . . . . . . . . . . . . . . Actions | -11 -10 -10 -9 -9 -9 -8 -8 -8 -8 -8 -7 -7 -7 -7 -6 -6 -6 -6 -6 -5 -5 -5 -5 -4 -4 -4 -4 -3 -3 -3 -3 -3 -2 -1 --------- Run | Yrd Mat Min Mat Min Exi Min Mat Gar Mat Gar Fac Gar Fac Gar Fac Ext Cet Arc Hub Fac Gar Fac Gar Fac Upp Upp War Pro Res Gar Res Gar Res Acc Total 15974 | 68 1225 115 692 433 214 237 1011 730 1600 323 819 949 32 702 346 764 285 43 268 132 343 19 311 291 424 428 37 324 271 314 437 376 564 847 Wait 1764 | . 392 6 70 5 . 4 146 19 410 29 150 67 3 51 6 61 32 . 16 1 3 . 5 19 1 1 1 . 44 49 16 47 36 74 Move 12362 | 50 727 92 509 410 208 229 741 636 1018 222 589 739 28 519 312 582 195 43 225 119 315 19 244 260 382 405 36 281 196 228 396 249 449 709 Hop . | . . . . . . . . . . . . . . . . . . . . . . . . . . . . . . . . . . . Pick Up 199 | 6 19 2 17 4 3 . 15 6 9 7 10 8 1 9 6 4 9 . . 2 2 . . 6 3 5 . 5 5 3 5 7 14 7 Fast Attach 64 | 7 . . 1 . . . 3 . 4 5 . 1 . 2 . 1 2 . . . 1 . 7 1 . . . 3 1 1 1 9 3 11 Attach 105 | . . . 6 . . . 4 1 4 7 7 10 . 5 3 4 1 . 1 2 1 . 8 1 . . . 7 4 3 . 10 11 5 Detach . | . . . . . . . . . . . . . . . . . . . . . . . . . . . . . . . . . . . Swap 181 | . 9 4 24 . . . 27 9 31 5 10 10 . 10 6 3 11 . . . 1 . . . 1 2 . 1 2 2 5 3 5 . Drop 127 | . 14 . 15 5 3 . 17 5 16 3 4 1 . 7 2 1 17 . . . . . . . . 3 . . 2 1 8 . 2 1 Fire 858 | 2 54 11 41 5 . 4 45 30 96 45 40 64 . 65 11 38 18 . 25 6 20 . 15 4 9 11 . 27 14 27 6 51 38 36 Melee 12 | . . . 5 . . . 7 . . . . . . . . . . . . . . . . . . . . . . . . . . . Ram . | . . . . . . . . . . . . . . . . . . . . . . . . . . . . . . . . . . . Kick . | . . . . . . . . . . . . . . . . . . . . . . . . . . . . . . . . . . . Crush 62 | 3 10 . 4 4 . . 6 . 12 . 7 . . . . . . . 1 2 . . . . . . . . 3 . . . 6 4 Escape Stasis 109 | . . . . . . . . 24 . . 2 4 . 31 . 16 . . . . . . 32 . . . . . . . . . . . Rewire 131 | . . . . . . . . . . . . 45 . 3 . 54 . . . . . . . . 28 1 . . . . . . . . Trap . | . . . . . . . . . . . . . . . . . . . . . . . . . . . . . . . . . . . Miscellaneous . | . . . . . . . . . . . . . . . . . . . . . . . . . . . . . . . . . . . Route ------- -11/Scrapyard -10/Materials (discovered 5 exits: *Mat x3 / [*Min] / Sub) -10/Mines (discovered 2 exits: *Mat / Sub) -9/Materials (discovered 2 exits: *Mat / *Min) -9/Mines (discovered 3 exits: *Mat x2 / *Exi) -9/Exiles (discovered 2 exits: *Min x2) -8/Mines -8/Materials (discovered 2 exits: *Fac / Gar) -8/Garrison (discovered 3 exits: *Mat x3) -8/Materials (discovered 4 exits: *Fac x3 / Gar) -8/Garrison -7/Factory (discovered 5 exits: *Fac x2 / *Low x2 / Gar) -7/Garrison (discovered 3 exits: *Fac x3) -7/Factory -7/Garrison (discovered 2 exits: *Fac x2) -6/Factory -6/Extension (discovered 3 exits: *Fac x2 / *Cet) -6/Cetus (discovered 2 exits: *Fac / [*Arc]) -6/Archives (discovered 2 exits: *Hub x2) -6/Hub_04(d) -5/Factory -5/Garrison (discovered 2 exits: *Fac x2) -5/Factory -5/Garrison -4/Factory -4/Upper Caves -4/Upper Caves -4/Warlord -3/Proximity Caves -3/Research -3/Garrison -3/Research -3/Garrison -2/Research -1/Access History --------- Turn | Location | Event 5 | -11/Scrapyard | Discovered new exit (range 15) 97 | -11/Scrapyard | Entered Materials 321 | -10/Materials | Build established: Mutant 408 | -10/Materials | Discovered new exit (range 8) 549 | -10/Materials | Discovered new exit (range 6) 778 | -10/Materials | Discovered new exit (range 5) 1114 | -10/Materials | Discovered new exit (range 16) 1552 | -10/Materials | Central database locked down 1627 | -10/Materials | Learned location of 2 exits from Mines 1691 | -10/Materials | Loaded intel: 1 repair station location 1815 | -10/Materials | Learned Storage garrison access intel 1835 | -10/Materials | Learned 4 Recycling zone layouts 1865 | -10/Materials | Identified exit to Subcaves 1903 | -10/Materials | Learned 4 Recycling zone layouts 1949 | -10/Materials | Learned location of Storage (-7) 1997 | -10/Materials | Entered Mines 1998 | -10/Mines | Identified exit to Materials 2092 | -10/Mines | Received a Rocket Launcher from a helpful Derelict 2182 | -10/Mines | Learned Materials stockpile data 2230 | -10/Mines | Learned Materials emergency access door positions 2261 | -10/Mines | Entered Materials 2261 | -9/Materials | Evolved 2 slots: Utility x1, Weapon x1 2262 | -9/Materials | Identified exit to Mines 3121 | -9/Materials | Discovered new exit (range 5) 3245 | -9/Materials | Build established: Tank 3710 | -9/Materials | Entered Mines 3871 | -9/Mines | Build established: Gunner 4001 | -9/Mines | Assembled infested the area 4003 | -9/Mines | Met a Derelict shopkeep closing up shop 4355 | -9/Mines | Discovered new exit (range 15) 4369 | -9/Mines | Learned Materials machine intel 4511 | -9/Mines | Discovered new exit (range 14) 4551 | -9/Mines | Discovered new exit (range 5) 4562 | -9/Mines | Entered Exiles 4562 | -9/Exiles | Accompanied by 2 allies 4563 | -9/Exiles | Identified exit to Mines 4592 | -9/Exiles | Led the pair of lost Derelicts to a safe place 4612 | -9/Exiles | Met 8R-AWN 4646 | -9/Exiles | Met EX-HEX 4706 | -9/Exiles | Met EX-BIN 4730 | -9/Exiles | Aligned with FarCom system 4732 | -9/Exiles | Given EX-Vault access code 4778 | -9/Exiles | Opened EX-Vault 4790 | -9/Exiles | Found Deploy-a-Sentry 4793 | -9/Exiles | Found Deploy-a-Sentry 4796 | -9/Exiles | Found Deploy-a-Sentry 4837 | -9/Exiles | Warned to stay clear of 0b10 Research branches 4895 | -9/Exiles | Met EX-DEC 4903 | -9/Exiles | Learned location of Zion (-7) 4961 | -9/Exiles | Discovered exit to Mines (range 14) 4983 | -9/Exiles | Left Exiles lab with Deploy-a-Sentry 4983 | -9/Exiles | Entered Mines 5286 | -8/Mines | Build established: Skirmisher 5436 | -8/Mines | Discovered new exit (range 11) 5456 | -8/Mines | Entered Materials 5456 | -8/Materials | Evolved 2 slots: Power x1, Utility x1 5457 | -8/Materials | Loaded intel: 57 machine locations 5952 | -8/Materials | Build established: Scientist-Tank 6324 | -8/Materials | Crushed by falling debris 6368 | -8/Materials | Build established: Scientist-Skirmisher 6840 | -8/Materials | Discovered new exit (range 15) 7124 | -8/Materials | Learned 4 Recycling zone layouts 7162 | -8/Materials | Learned 4 Factory zone layouts 7189 | -8/Materials | Learned location of 1 exit from Recycling 7195 | -8/Materials | Build established: Tank 7213 | -8/Materials | Learned 2 Lower Caves zone layouts 7214 | -8/Materials | Learned Factory terminal intel 7215 | -8/Materials | Learned 4 Recycling zone layouts 7216 | -8/Materials | Learned location of Extension (-6) 7225 | -8/Materials | Learned location of 1 exit from Lower Caves 7302 | -8/Materials | Identified exit to Garrison 7302 | -8/Materials | Entered Garrison 7314 | -8/Garrison | Phase Generator disabled 7386 | -8/Garrison | Triggered checkpoint 7650 | -8/Garrison | Discovered new exit (range 11) 7708 | -8/Garrison | Triggered checkpoint 7734 | -8/Garrison | Installed Relay Interface Framework 7908 | -8/Garrison | Discovered new exit (range 14) 7996 | -8/Garrison | Triggered checkpoint 7996 | -8/Garrison | Garrison Relay disabled 8124 | -8/Garrison | Triggered checkpoint 8212 | -8/Garrison | Garrison Relay disabled 8230 | -8/Garrison | Triggered checkpoint 8291 | -8/Garrison | System corruption reached 10% 8304 | -8/Garrison | Build established: Scientist-Tank 8407 | -8/Garrison | Discovered new exit (range 8) 8713 | -8/Garrison | Entered Materials 8945 | -8/Materials | Lost 3 parts (1n1u1w) 9052 | -8/Materials | Central database locked down 9957 | -8/Materials | Discovered new exit (range 4) 10233 | -8/Materials | Build established: Tank 10429 | -8/Materials | Discovered new exit (range 8) 10696 | -8/Materials | Build established: Scavenger-Skirmisher 10869 | -8/Materials | Learned Storage stockpile data 10899 | -8/Materials | Learned location of 2 exits from Factory 10921 | -8/Materials | Learned Factory repair station intel 10931 | -8/Materials | Learned 4 Lower Caves zone layouts 10933 | -8/Materials | Identified exit to Factory 10934 | -8/Materials | Learned 2 Storage zone layouts 10936 | -8/Materials | Learned location of 1 exit from Lower Caves 10937 | -8/Materials | Learned Factory stockpile data 10945 | -8/Materials | Learned Storage security intel 11468 | -8/Materials | Garrison activated, responded to threat 11528 | -8/Materials | Identified exit to Garrison 11528 | -8/Materials | Entered Garrison 11574 | -8/Garrison | Learned Factory security intel 11595 | -8/Garrison | Core integrity fell below 50% 11724 | -8/Garrison | Triggered checkpoint 11854 | -8/Garrison | Expanded RIF knowledge: Watcher Feeds 11920 | -8/Garrison | Build established: Scavenger-Tank 11960 | -8/Garrison | Discovered exit to Factory (range 9) 12006 | -8/Garrison | Garrison Relay disabled 12012 | -8/Garrison | Garrison Relay disabled 12066 | -8/Garrison | Lost 5 parts (1p1n3w) 12109 | -8/Garrison | Garrison Relay disabled 12152 | -8/Garrison | Entered Factory 12152 | -7/Factory | Evolved 2 slots: Propulsion x1, Utility x1 12153 | -7/Factory | Identified exit to Lower Caves 12154 | -7/Factory | Identified exit to Factory 12158 | -7/Factory | Loaded intel: 26 terminal locations 12159 | -7/Factory | Loaded intel: 6 repair station locations 12206 | -7/Factory | Garrison activated, responded to threat 12405 | -7/Factory | Build established: Bothacker-Tank 12666 | -7/Factory | Lost 4 parts (1p3u) 12721 | -7/Factory | Build established: Bothacker-Skirmisher 13057 | -7/Factory | Central database locked down 13526 | -7/Factory | Identified exit to Garrison 13526 | -7/Factory | Entered Garrison 13530 | -7/Garrison | Triggered checkpoint 13590 | -7/Garrison | Triggered checkpoint 13681 | -7/Garrison | Triggered checkpoint 13720 | -7/Garrison | Garrison Relay disabled 14033 | -7/Garrison | Triggered checkpoint 14118 | -7/Garrison | Discovered new exit (range 15) 14266 | -7/Garrison | Triggered checkpoint 14298 | -7/Garrison | Garrison Relay disabled 14594 | -7/Garrison | Rescued a captive Derelict 14596 | -7/Garrison | Discovered new exit (range 12) 14733 | -7/Garrison | Garrison Relay disabled 14967 | -7/Garrison | Lost 4 parts (1p1n2w) 15041 | -7/Garrison | Expanded RIF knowledge: Threat Obfuscation 15210 | -7/Garrison | Discovered new exit (range 15) 15274 | -7/Garrison | Entered Factory 15274 | -7/Factory | Accompanied by 5 allies 15323 | -7/Factory | Identified exit to Garrison 15326 | -7/Factory | Entered Garrison 15326 | -7/Garrison | Accompanied by 5 allies 15347 | -7/Garrison | Expanded RIF knowledge: Zone Cloak 15474 | -7/Garrison | P-60 Hacker assimilated allied Gladiator 4f 15520 | -7/Garrison | Lost 3 allies 15576 | -7/Garrison | Garrison Relay disabled 15656 | -7/Garrison | Core integrity fell below 50% 15760 | -7/Garrison | Triggered checkpoint 15853 | -7/Garrison | System corruption reached 10% 15886 | -7/Garrison | Build established: Botlord-Skirmisher 16126 | -7/Garrison | Triggered checkpoint 16188 | -7/Garrison | Lost 5 parts (2p3n) 16298 | -7/Garrison | Discovered exit to Factory (range 11) 16380 | -7/Garrison | Triggered checkpoint 16424 | -7/Garrison | Discovered exit to Factory (range 8) 16440 | -7/Garrison | Triggered checkpoint 16526 | -7/Garrison | Entered Factory 16526 | -6/Factory | Evolved 2 slots: Propulsion x1, Utility x1 16527 | -6/Factory | Identified exit to Extension 16831 | -6/Factory | Build established: Botlord-Tank 16932 | -6/Factory | Entered Extension 17079 | -6/Extension | Rescued a captive Derelict 17085 | -6/Extension | Rescued a captive Derelict 17240 | -6/Extension | Rescued a captive Derelict 17375 | -6/Extension | Rescued a captive Derelict 17437 | -6/Extension | Build established: Botlord-Skirmisher 17525 | -6/Extension | Spotted B-75 Beast 17542 | -6/Extension | Allies destroyed B-75 Beast 17564 | -6/Extension | Lost 3 parts (1p2u) 17573 | -6/Extension | Spotted B-75 Beast 17586 | -6/Extension | Allies destroyed B-75 Beast 17607 | -6/Extension | Disrupted transfer network 17623 | -6/Extension | Rescued a captive Derelict 17636 | -6/Extension | Energy Cycler disabled 17636 | -6/Extension | Discovered new exit (range 31) 17638 | -6/Extension | Rescued a captive Derelict 17639 | -6/Extension | Rescued a captive Derelict 17649 | -6/Extension | Rescued a captive Derelict 17656 | -6/Extension | Rescued A7 17793 | -6/Extension | Discovered new exit (range 10) 17794 | -6/Extension | Discovered new exit (range 6) 17819 | -6/Extension | Build established: Bothacker-Skirmisher 17861 | -6/Extension | Entered Cetus 17861 | -6/Cetus | Accompanied by 9 allies (A7) 17866 | -6/Cetus | Acquired a Cetus Manufacturing Module code from A7 17882 | -6/Cetus | Spotted Cetus Guard 17882 | -6/Cetus | Spotted Cetus Guard 17889 | -6/Cetus | Allies destroyed Cetus Guard 17889 | -6/Cetus | Destroyed Cetus Guard 17892 | -6/Cetus | Spotted Cetus Guard 17899 | -6/Cetus | Destroyed Cetus Guard 17902 | -6/Cetus | Destroyed Cetus Guard 18024 | -6/Cetus | Escorted A7 to Cetus Mainframe 18037 | -6/Cetus | Started Cetus Manufacturing Module 18058 | -6/Cetus | Discovered new exit (range 15) 18062 | -6/Cetus | Manufactured an Enhanced Grunt 18078 | -6/Cetus | Discovered new exit (range 27) 18087 | -6/Cetus | Manufactured an Enhanced Grunt 18087 | -6/Cetus | Spotted Cetus Guard 18087 | -6/Cetus | Spotted Cetus Guard 18095 | -6/Cetus | Spotted Cetus Guard 18095 | -6/Cetus | Spotted Cetus Guard 18095 | -6/Cetus | Allies destroyed Cetus Guard 18100 | -6/Cetus | Destroyed Cetus Guard 18103 | -6/Cetus | Allies destroyed Cetus Guard 18112 | -6/Cetus | Manufactured an Enhanced Grunt 18126 | -6/Cetus | Allies destroyed Cetus Guard 18133 | -6/Cetus | Extracted ID and sensor layout for unrecognized location from A7's data core 18137 | -6/Cetus | Manufactured an Enhanced Grunt 18141 | -6/Cetus | Met Revision 17 18154 | -6/Cetus | Lost 4 allies 18162 | -6/Cetus | Manufactured an Enhanced Grunt 18277 | -6/Cetus | Entered Archives 18277 | -6/Archives | Accompanied by 8 allies 18297 | -6/Archives | Met Zhirov 18303 | -6/Archives | Reinforcements dispatched to Archives 18306 | -6/Archives | Discovered new exit (range 16) 18327 | -6/Archives | Discovered new exit (range 13) 18346 | -6/Archives | Entered Hub_04(d) 18457 | -6/Hub_04(d) | Build established: Scavenger-Tank 18610 | -6/Hub_04(d) | Discovered new exit (range 11) 18731 | -6/Hub_04(d) | Network Hub disabled 18732 | -6/Hub_04(d) | System corruption reached 10% 18806 | -6/Hub_04(d) | Entered Factory 18806 | -5/Factory | Evolved 2 slots: Utility x1, Weapon x1 19026 | -5/Factory | Identified exit to Garrison 19026 | -5/Factory | Entered Garrison 19128 | -5/Garrison | Triggered checkpoint 19227 | -5/Garrison | Triggered checkpoint 19349 | -5/Garrison | Discovered new exit (range 10) 19426 | -5/Garrison | Triggered checkpoint 19472 | -5/Garrison | Triggered checkpoint 19490 | -5/Garrison | Expanded RIF knowledge: Zone Cloak 19573 | -5/Garrison | Discovered new exit (range 8) 19602 | -5/Garrison | Entered Factory 19633 | -5/Factory | Identified exit to Garrison 19633 | -5/Factory | Entered Garrison 19793 | -5/Garrison | System corruption reached 10% 19847 | -5/Garrison | Triggered checkpoint 19869 | -5/Garrison | Lost 9 parts (1p2n2u4w) 19998 | -5/Garrison | Discovered new exit (range 15) 20128 | -5/Garrison | Entered Factory 20128 | -4/Factory | Evolved 2 slots: Utility x2 20518 | -4/Factory | Discovered new exit (range 3) 20586 | -4/Factory | Entered Upper Caves 20590 | -4/Upper Caves | Attracted the attention of an 0b10 checkpoint 20616 | -4/Upper Caves | Learned Research emergency access door positions 20910 | -4/Upper Caves | Attacked by a delusional Derelict stockpiling Unaware 21083 | -4/Upper Caves | Encountered a Warlord checkpoint 21247 | -4/Upper Caves | Discovered new exit (range 12) 21263 | -4/Upper Caves | Entered another Upper Caves area 21263 | -4/Upper Caves | Accompanied by 3 allies 21312 | -4/Upper Caves | Learned Research terminal intel 21866 | -4/Upper Caves | Discovered new exit (range 14) 21872 | -4/Upper Caves | Encountered a Warlord checkpoint 21959 | -4/Upper Caves | Entered Warlord 21959 | -4/Warlord | Accompanied by 1 ally 22006 | -4/Warlord | Discovered new exit (range 8) 22018 | -4/Warlord | Entered Proximity Caves 22018 | -3/Proximity Caves | Accompanied by 1 ally 22406 | -3/Proximity Caves | Lost 8 parts (2p1n2u3w) 22643 | -3/Proximity Caves | Discovered new exit (range 15) 22670 | -3/Proximity Caves | Entered Research 22670 | -3/Research | Evolved 2 slots: Propulsion x1, Utility x1 22672 | -3/Research | Loaded intel: 23 terminal locations 22699 | -3/Research | Build established: Scavenger-Gunner 22870 | -3/Research | Revision forces began assault on 0b10 22915 | -3/Research | Spotted B-86 Titan 22948 | -3/Research | Destroyed B-86 Titan 22963 | -3/Research | Met up with Revision 17++ 23099 | -3/Research | Identified exit to Garrison 23099 | -3/Research | Entered Garrison 23163 | -3/Garrison | Triggered checkpoint 23231 | -3/Garrison | Expanded RIF knowledge: Threat Obfuscation 23415 | -3/Garrison | Spotted B-86 Titan 23484 | -3/Garrison | Build established: Scavenger-Tank 23488 | -3/Garrison | Destroyed B-86 Titan 23539 | -3/Garrison | Triggered checkpoint 23618 | -3/Garrison | Discovered new exit (range 9) 23631 | -3/Garrison | Entered Research 24335 | -3/Research | Identified exit to Garrison 24335 | -3/Research | Entered Garrison 24506 | -3/Garrison | Spotted B-86 Titan 24560 | -3/Garrison | Destroyed B-86 Titan 24588 | -3/Garrison | Lost 3 parts (1p1n1u) 24606 | -3/Garrison | Triggered checkpoint 24609 | -3/Garrison | Triggered checkpoint 24817 | -3/Garrison | Lost 11 parts (3p2n3u3w) 24992 | -3/Garrison | Discovered new exit (range 10) 25008 | -3/Garrison | Entered Research 25008 | -2/Research | Evolved 2 slots: Power x1, Propulsion x1 25068 | -2/Research | Build established: Scavenger-Gunner 25078 | -2/Research | Central database locked down 25658 | -2/Research | Destroyed 7 combat bots 25663 | -2/Research | Lost 4 parts (1p3w) 25820 | -2/Research | Discovered new exit (range 10) 25993 | -2/Research | Identified exit to Access 25995 | -2/Research | Entered Access 25995 | -1/Access | Evolved 2 slots: Utility x2 26074 | -1/Access | Build established: Scavenger-Skirmisher 26323 | -1/Access | System corruption reached 10% 26330 | -1/Access | Lost 3 parts (1p1n1u) 26511 | -1/Access | Lost 3 parts (2p1w) 26621 | -1/Access | Build established: Scavenger-Tank 26701 | -1/Access | System corruption reached 30% 26747 | -1/Access | Spotted B-99 Colossus 26750 | -1/Access | DAS Turret deployed 26761 | -1/Access | Released all parts (4) 26762 | -1/Access | DAS Turret deployed 26762 | -1/Access | Core integrity fell below 50% 26763 | -1/Access | DAS Turret deployed 26776 | -1/Access | Core integrity fell below 20% 26790 | -1/Access | Lost 17 parts (3p4n7u3w) 26803 | -1/Access | Lost 3 allies 26829 | -1/Access | Spotted B-99 Colossus 26955 | -1/Access | Destroyed by P-80 Master with Gamma Rifle Last Messages --------------- 26821_ System corrupted: Heat flow error (+159). 26830_ K-01 Serf cleans the Fabricator. 26836_ System corrupted: Component data lost. 26841_ Detecting nearby Garrison Access. 26851_ Q7M7D#CFBII,47 KJMZHHKUI |GU 26870_ System corrupted: Matter fused (-7). 26880_ Connecting with Terminal... 26887_ System corrupted: Energy discharge (-31). 26898_ Acquired Adv. Heavy Treads. 26902_ System corrupted: Energy discharge (-15). 26918_ ALERT: Potential suspicious activity detected, Programmers report to Access Zone 1Z. 26922_ System corrupted: Energy discharge (-25). 26939_ KGE6V=5#KK8>L6LMJIQAHP 26942_ Connecting with Garrison Access... >>Seal Access door sealed. 26945_ Adv. Medium Treads destroyed. 26954_ System corrupted: Adv. Heavy Treads rejected. 26954_ Acquired Adv. Heavy Treads. Map ----- +----------------------------------------------------+ | ??????#???????# """"" ] #????????????##???##?? | | #?????????????# """"" #?#????##?#???##?????? | | ???????#??????# """"" #??????#?????????????? | | ????????#?#??## """"" #???? ???????????????? | | ??#????##?????# #??????????? ???? ???# | | ??#???#???????# ! ##??????????? ???????# | | ????????????#?# #?##?#???????"???????# | | ??????????????# ! #?#??#?##????"?????? + | | ??????#??#????#######+############?????????"?"???# | | ?#???????????????# #????????""???? ?+ | | ?????????????????# ##?#?????????????# | | ????????????????## #?????? ?????????# | | ??????????#??????# ##??#??? ? ??????# | | ?????????#???????# #???? ??????? ???# | | ?????????????????# #??????????#?????# | | ?????#???????????# ##########?????#?# | | ???????????############## #??######## | | #??????????# # #??# // | | ???????#???# w # #### / | | ???????????# """"" s + | | ???????????#"" """"" #s " #### | | ?#?????????#"" """"" #s """ #??# | | ???????????#"" """"" #s """ #??# | | ??????????##G """"" #s " #??# | | ???????????#"" # #??# | | ???????????#"" #@ ##?# | | ???????#???#"" # p #??# | | ???????????# # " != #??# | | ???????????# # """ != #??# | | ???????????############## """ ! ##########+ | | ???????????#??????#?????# " !% | | ?????????#??????#?#?????# * | | ????????????????????????# % | | ???????????????????#????# | | ?????????????????#??????# | | ?????????????############ | | ?????????????# t ^ | | ?????????????# #######+######/######+######+ | | ?????????????# # #? ?? ???????#?? | | ?????????????# # # ?????????? ??? | | ?????????????# # #??????? ??????? | | ?????????????# # #??????????????? | | ?????????????# # #??? ??????????? | | ?????????????# # #??????????????? | | ?????????????# # #?????? ???????? | | ?????????????# # #??????????????? | | ?????????????+ + #???? ?????????? | | ?????????????# # #?? ?????????? ? | | ?????????????# # #??????????????? | | ?????????????# # #? ???? ???????? | +----------------------------------------------------+ Best States ------------- Heat Dissipation 159 Coolant Potential 100 Energy Generation 63 Energy Capacity 600 Matter Stores 300 Matter Capacity 300 Sight Range 16 Terrain Scan Range 24 Terrain Scan Density 10 Jamming Range 16 Power Amplification 30 EM Shielding 2 Armor Coverage 1350 Resistance: KI 20 Resistance: EM 20 Evasion (%) 50 Target Analysis 12 Recoil Reduction 6 Energy Filtering 50 Particle Charging 20 Kinecelleration 40 Relay Coupler Types 3 Relay Coupler Value 90 Authchip Count 1 Item Schematics ----------------- None Robot Schematics ------------------ None Fabricated ------------ Nothing Repaired ---------- Nothing Studied --------- Autogun | -9/Materials | Hacked Lgt. Treads | -9/Materials | Hacked Imp. Treads | -9/Materials | Hacked Minigun | -8/Materials | Hacked Deuterium Engine | -8/Materials | Hacked Arm. Wheel | -8/Materials | Hacked Arm. Treads | -8/Materials | Hacked Pulse Rifle | -8/Materials | Hacked Imp. Ion Engine | -8/Materials | Hacked Hvy. Missile Launcher | -8/Materials | Hacked Gauss Rifle | -7/Factory | Hacked Nova Cannon | -3/Research | Hacked Mic. Antimatter Reactor | -2/Research | Hacked Alien Tech Used ----------------- None Achievements -------------- Hackerman Into The Breach Join The Dark Side Let Me Out Of Here Mindtrick Tank Life You Will Be Upgraded Challenges ------------ None Game ------ Seed TowerAlertAirjet Manual? 0 Play Time 02:22:24 Cumulative 470.8 hours Start 2025.10.30 @ 13:40:54 End 2025.10.31 @ 11:29:56 Sessions 3 Manual Loads 0 Difficulty Rogue Special Mode None Game No. 177 Rogue 78 Adventurer 0 Explorer 99 Win Type - Total 66 Types 11/11/11/4/7/6/7/2/3/4 Lore% 86 Gallery% 84 Achievement% 58 Wizard Run 0 Options --------- Layout 1 ASCII 0 Keyboard 0 Movement Numpad Keybinds 0 Fullscreen 1 Font 20/SmallcapsGlow Map View 54x42 Zoom Use 0% Tactical HUD 1 Map Filters NONE Filters NONE Steam 1 RUN: 19142b89-e09b-4fa0-b681-985e874d868f